{"text_format":"1","workbook":"xlsx","n_sheets":5,"sheets":["Liste Associés","Registre des mouvements","TCD","Feuil3","Listes"],"not_rendered":{"charts":0,"images":0,"macros":1,"external_links":0,"defined_names":2,"comments":0,"pivot_tables":1},"unopened":[],"bounds":{"document_bytes":16777216,"sheet_cells":100000,"rows_first":2000,"rows_last":500,"rows_between":2000,"halvings":0,"cell_chars":16384,"cell_head_chars":4096},"cells_cut":0,"cells_raw":0,"read":"whole","date_system":"1900"}

{"sheet":"Liste Associés","index":0,"n_rows":51,"n_cols":5,"rows_kept":51,"cut":false,"hidden":false,"merged":[]}
["NOM Prénom","Adresse","Commune","Code Postal","N° Associé"]
["JEAN Pierre","30 rue Pierre","Bonneval",28800,"A1"]
["JEAN Paul","25 rue exemple","Commune A",27177,"A2"]
["JEAN Jacques","26 rue exemple","Commune B",36000,"A3"]
["JEAN François","27 rue exemple","Commune C",28000,"A4"]
["JEAN Marie","28 rue exemple","Commune D",45000,"A5"]
["NOM Prénom 42424","29 rue exemple",null,null,"A6"]
["NOM Prénom 7","30 rue exemple",null,null,"A7"]
["NOM Prénom 8","31 rue exemple",null,null,"A8"]
["NOM Prénom 9","32 rue exemple",null,null,"A9"]
["NOM Prénom 10","33 rue exemple",null,null,"A10"]
["NOM Prénom 11","34 rue exemple",null,null,"A11"]
["NOM Prénom 12","35 rue exemple",null,null,"A12"]
["NOM Prénom 13","36 rue exemple",null,null,"A13"]
["NOM Prénom 14","37 rue exemple",null,null,"A14"]
["NOM Prénom 15","38 rue exemple",null,null,"A15"]
["NOM Prénom 16","39 rue exemple",null,null,"A16"]
["NOM Prénom 17","40 rue exemple",null,null,"A17"]
["NOM Prénom 18","41 rue exemple",null,null,"A18"]
["NOM Prénom 19","42 rue exemple",null,null,"A19"]
["NOM Prénom 20","43 rue exemple",null,null,"A20"]
["NOM Prénom 21","44 rue exemple",null,null,"A21"]
["NOM Prénom 22","45 rue exemple",null,null,"A22"]
["NOM Prénom 23","46 rue exemple",null,null,"A23"]
["NOM Prénom 24","47 rue exemple",null,null,"A24"]
["NOM Prénom 25","48 rue exemple",null,null,"A25"]
["NOM Prénom 26","49 rue exemple",null,null,"A26"]
["NOM Prénom 27","50 rue exemple",null,null,"A27"]
["NOM Prénom 28","51 rue exemple",null,null,"A28"]
["NOM Prénom 29","52 rue exemple",null,null,"A29"]
["NOM Prénom 30","53 rue exemple",null,null,"A30"]
["NOM Prénom 31","54 rue exemple",null,null,"A31"]
["NOM Prénom 32","55 rue exemple",null,null,"A32"]
["NOM Prénom 33","56 rue exemple",null,null,"A33"]
["NOM Prénom 34","57 rue exemple",null,null,"A34"]
["NOM Prénom 35","58 rue exemple",null,null,"A35"]
["NOM Prénom 36","59 rue exemple",null,null,"A36"]
["NOM Prénom 37","60 rue exemple",null,null,"A37"]
["NOM Prénom 38","61 rue exemple",null,null,"A38"]
["NOM Prénom 39","62 rue exemple",null,null,"A39"]
["NOM Prénom 40","63 rue exemple",null,null,"A40"]
["NOM Prénom 41","64 rue exemple",null,null,"A41"]
["NOM Prénom 42","65 rue exemple",null,null,"A42"]
["NOM Prénom 43","66 rue exemple",null,null,"A43"]
["NOM Prénom 44","67 rue exemple",null,null,"A44"]
["NOM Prénom 45","68 rue exemple",null,null,"A45"]
["NOM Prénom 46","69 rue exemple",null,null,"A46"]
["NOM Prénom 47","70 rue exemple",null,null,"A47"]
["NOM Prénom 48","71 rue exemple",null,null,"A48"]
["NOM Prénom 49","72 rue exemple",null,null,"A49"]
["NOM Prénom 50","73 rue exemple",null,null,"A50"]

{"sheet":"Registre des mouvements","index":1,"n_rows":359,"n_cols":14,"rows_kept":359,"cut":false,"hidden":false,"merged":[[2,13,5,22]]}
["Date de l'opération","NOM Prénom (Opérateur)","N° Identification","Adresse","Commune","Code Postal","Nature Opération","N° Part sociale","NOM Prénom (Bénéficiaire)","N° Identification (Bénéficiaire","Sens"]
[null,"JEAN Pierre",{"$f":"VLOOKUP(B2,'Liste Associés'!A:E,5,FALSE)","v":"A1"},{"$f":"VLOOKUP(B2,'Liste Associés'!A:E,2,FALSE)","v":"30 rue Pierre"},{"$f":"VLOOKUP(B2,'Liste Associés'!A:E,3,FALSE)","v":"Bonneval"},{"$f":"VLOOKUP(B2,'Liste Associés'!A:E,4,FALSE)","v":28800},"Apport",1,null,{"$f":"VLOOKUP(I2,'Liste Associés'!A:E,5,FALSE)","v":{"$error":"#N/A"}},{"$f":"IF(Tableau2[[#This Row],[Nature Opération]]=\"Apport\",1,-1)","v":1}]
[null,"JEAN Pierre",{"$f":"VLOOKUP(B3,'Liste Associés'!A:E,5,FALSE)","v":"A1"},{"$f":"VLOOKUP(B3,'Liste Associés'!A:E,2,FALSE)","v":"30 rue Pierre"},{"$f":"VLOOKUP(B3,'Liste Associés'!A:E,3,FALSE)","v":"Bonneval"},{"$f":"VLOOKUP(B3,'Liste Associés'!A:E,4,FALSE)","v":28800},"Apport",2,null,{"$f":"VLOOKUP(I3,'Liste Associés'!A:E,5,FALSE)","v":{"$error":"#N/A"}},{"$f":"IF(Tableau2[[#This Row],[Nature Opération]]=\"Apport\",1,-1)","v":1},null,"Colonne H ","je voudrais que le numéro d'identification des parts sociales se génèrent automatiquement lorsqu'il s'agit d'un apport. \nDans le cas d'une cession/donation je voudrais que cela génère une liste déroulante avec les parts sociales détenues par l'opérateur)"]
[null,"JEAN Paul",{"$f":"VLOOKUP(B4,'Liste Associés'!A:E,5,FALSE)","v":"A2"},{"$f":"VLOOKUP(B4,'Liste Associés'!A:E,2,FALSE)","v":"25 rue exemple"},{"$f":"VLOOKUP(B4,'Liste Associés'!A:E,3,FALSE)","v":"Commune A"},{"$f":"VLOOKUP(B4,'Liste Associés'!A:E,4,FALSE)","v":27177},"Apport",3,null,{"$f":"VLOOKUP(I4,'Liste Associés'!A:E,5,FALSE)","v":{"$error":"#N/A"}},{"$f":"IF(Tableau2[[#This Row],[Nature Opération]]=\"Apport\",1,-1)","v":1}]
[null,"JEAN Paul",{"$f":"VLOOKUP(B5,'Liste Associés'!A:E,5,FALSE)","v":"A2"},{"$f":"VLOOKUP(B5,'Liste Associés'!A:E,2,FALSE)","v":"25 rue exemple"},{"$f":"VLOOKUP(B5,'Liste Associés'!A:E,3,FALSE)","v":"Commune A"},{"$f":"VLOOKUP(B5,'Liste Associés'!A:E,4,FALSE)","v":27177},"Apport",4,null,{"$f":"VLOOKUP(I5,'Liste Associés'!A:E,5,FALSE)","v":{"$error":"#N/A"}},{"$f":"IF(Tableau2[[#This Row],[Nature Opération]]=\"Apport\",1,-1)","v":1}]
[null,"JEAN Jacques",{"$f":"VLOOKUP(B6,'Liste Associés'!A:E,5,FALSE)","v":"A3"},{"$f":"VLOOKUP(B6,'Liste Associés'!A:E,2,FALSE)","v":"26 rue exemple"},{"$f":"VLOOKUP(B6,'Liste Associés'!A:E,3,FALSE)","v":"Commune B"},{"$f":"VLOOKUP(B6,'Liste Associés'!A:E,4,FALSE)","v":36000},"Apport",5,null,{"$f":"VLOOKUP(I6,'Liste Associés'!A:E,5,FALSE)","v":{"$error":"#N/A"}},{"$f":"IF(Tableau2[[#This Row],[Nature Opération]]=\"Apport\",1,-1)","v":1}]
[null,"JEAN François",{"$f":"VLOOKUP(B7,'Liste Associés'!A:E,5,FALSE)","v":"A4"},{"$f":"VLOOKUP(B7,'Liste Associés'!A:E,2,FALSE)","v":"27 rue exemple"},{"$f":"VLOOKUP(B7,'Liste Associés'!A:E,3,FALSE)","v":"Commune C"},{"$f":"VLOOKUP(B7,'Liste Associés'!A:E,4,FALSE)","v":28000},"Apport",6,null,{"$f":"VLOOKUP(I7,'Liste Associés'!A:E,5,FALSE)","v":{"$error":"#N/A"}},{"$f":"IF(Tableau2[[#This Row],[Nature Opération]]=\"Apport\",1,-1)","v":1}]
[null,"JEAN François",{"$f":"VLOOKUP(B8,'Liste Associés'!A:E,5,FALSE)","v":"A4"},{"$f":"VLOOKUP(B8,'Liste Associés'!A:E,2,FALSE)","v":"27 rue exemple"},{"$f":"VLOOKUP(B8,'Liste Associés'!A:E,3,FALSE)","v":"Commune C"},{"$f":"VLOOKUP(B8,'Liste Associés'!A:E,4,FALSE)","v":28000},"Apport",7,null,{"$f":"VLOOKUP(I8,'Liste Associés'!A:E,5,FALSE)","v":{"$error":"#N/A"}},{"$f":"IF(Tableau2[[#This Row],[Nature Opération]]=\"Apport\",1,-1)","v":1}]
[null,"JEAN Marie",{"$f":"VLOOKUP(B9,'Liste Associés'!A:E,5,FALSE)","v":"A5"},{"$f":"VLOOKUP(B9,'Liste Associés'!A:E,2,FALSE)","v":"28 rue exemple"},{"$f":"VLOOKUP(B9,'Liste Associés'!A:E,3,FALSE)","v":"Commune D"},{"$f":"VLOOKUP(B9,'Liste Associés'!A:E,4,FALSE)","v":45000},"Apport",8,null,{"$f":"VLOOKUP(I9,'Liste Associés'!A:E,5,FALSE)","v":{"$error":"#N/A"}},{"$f":"IF(Tableau2[[#This Row],[Nature Opération]]=\"Apport\",1,-1)","v":1}]
[null,"JEAN Marie",{"$f":"VLOOKUP(B10,'Liste Associés'!A:E,5,FALSE)","v":"A5"},{"$f":"VLOOKUP(B10,'Liste Associés'!A:E,2,FALSE)","v":"28 rue exemple"},{"$f":"VLOOKUP(B10,'Liste Associés'!A:E,3,FALSE)","v":"Commune D"},{"$f":"VLOOKUP(B10,'Liste Associés'!A:E,4,FALSE)","v":45000},"Apport",9,null,{"$f":"VLOOKUP(I10,'Liste Associés'!A:E,5,FALSE)","v":{"$error":"#N/A"}},{"$f":"IF(Tableau2[[#This Row],[Nature Opération]]=\"Apport\",1,-1)","v":1}]
[null,"JEAN Paul",{"$f":"VLOOKUP(B11,'Liste Associés'!A:E,5,FALSE)","v":"A2"},{"$f":"VLOOKUP(B11,'Liste Associés'!A:E,2,FALSE)","v":"25 rue exemple"},{"$f":"VLOOKUP(B11,'Liste Associés'!A:E,3,FALSE)","v":"Commune A"},{"$f":"VLOOKUP(B11,'Liste Associés'!A:E,4,FALSE)","v":27177},"Cession",3,null,{"$f":"VLOOKUP(I11,'Liste Associés'!A:E,5,FALSE)","v":{"$error":"#N/A"}},{"$f":"IF(Tableau2[[#This Row],[Nature Opération]]=\"Apport\",1,-1)","v":-1}]
[null,"NOM Prénom 42424",{"$f":"VLOOKUP(B12,'Liste Associés'!A:E,5,FALSE)","v":"A6"},{"$f":"VLOOKUP(B12,'Liste Associés'!A:E,2,FALSE)","v":"29 rue exemple"},{"$f":"VLOOKUP(B12,'Liste Associés'!A:E,3,FALSE)","v":0},{"$f":"VLOOKUP(B12,'Liste Associés'!A:E,4,FALSE)","v":0},"Donation",28,null,{"$f":"VLOOKUP(I12,'Liste Associés'!A:E,5,FALSE)","v":{"$error":"#N/A"}},{"$f":"IF(Tableau2[[#This Row],[Nature Opération]]=\"Apport\",1,-1)","v":-1}]
[null,"NOM Prénom 42424",{"$f":"VLOOKUP(B13,'Liste Associés'!A:E,5,FALSE)","v":"A6"},{"$f":"VLOOKUP(B13,'Liste Associés'!A:E,2,FALSE)","v":"29 rue exemple"},{"$f":"VLOOKUP(B13,'Liste Associés'!A:E,3,FALSE)","v":0},{"$f":"VLOOKUP(B13,'Liste Associés'!A:E,4,FALSE)","v":0},"Apport",29,null,{"$f":"VLOOKUP(I13,'Liste Associés'!A:E,5,FALSE)","v":{"$error":"#N/A"}},{"$f":"IF(Tableau2[[#This Row],[Nature Opération]]=\"Apport\",1,-1)","v":1}]
[null,"NOM Prénom 42424",{"$f":"VLOOKUP(B14,'Liste Associés'!A:E,5,FALSE)","v":"A6"},{"$f":"VLOOKUP(B14,'Liste Associés'!A:E,2,FALSE)","v":"29 rue exemple"},{"$f":"VLOOKUP(B14,'Liste Associés'!A:E,3,FALSE)","v":0},{"$f":"VLOOKUP(B14,'Liste Associés'!A:E,4,FALSE)","v":0},"Apport",30,null,{"$f":"VLOOKUP(I14,'Liste Associés'!A:E,5,FALSE)","v":{"$error":"#N/A"}},{"$f":"IF(Tableau2[[#This Row],[Nature Opération]]=\"Apport\",1,-1)","v":1}]
[null,"NOM Prénom 42424",{"$f":"VLOOKUP(B15,'Liste Associés'!A:E,5,FALSE)","v":"A6"},{"$f":"VLOOKUP(B15,'Liste Associés'!A:E,2,FALSE)","v":"29 rue exemple"},{"$f":"VLOOKUP(B15,'Liste Associés'!A:E,3,FALSE)","v":0},{"$f":"VLOOKUP(B15,'Liste Associés'!A:E,4,FALSE)","v":0},"Donation",14,null,{"$f":"VLOOKUP(I15,'Liste Associés'!A:E,5,FALSE)","v":{"$error":"#N/A"}},{"$f":"IF(Tableau2[[#This Row],[Nature Opération]]=\"Apport\",1,-1)","v":-1}]
[null,null,{"$f":"VLOOKUP(B16,'Liste Associés'!A:E,5,FALSE)","v":{"$error":"#N/A"}},{"$f":"VLOOKUP(B16,'Liste Associés'!A:E,2,FALSE)","v":{"$error":"#N/A"}},{"$f":"VLOOKUP(B16,'Liste Associés'!A:E,3,FALSE)","v":{"$error":"#N/A"}},{"$f":"VLOOKUP(B16,'Liste Associés'!A:E,4,FALSE)","v":{"$error":"#N/A"}},null,15,null,{"$f":"VLOOKUP(I16,'Liste Associés'!A:E,5,FALSE)","v":{"$error":"#N/A"}},{"$f":"IF(Tableau2[[#This Row],[Nature Opération]]=\"Apport\",1,-1)","v":-1}]
[null,null,{"$f":"VLOOKUP(B17,'Liste Associés'!A:E,5,FALSE)","v":{"$error":"#N/A"}},{"$f":"VLOOKUP(B17,'Liste Associés'!A:E,2,FALSE)","v":{"$error":"#N/A"}},{"$f":"VLOOKUP(B17,'Liste Associés'!A:E,3,FALSE)","v":{"$error":"#N/A"}},{"$f":"VLOOKUP(B17,'Liste Associés'!A:E,4,FALSE)","v":{"$error":"#N/A"}},null,16,null,{"$f":"VLOOKUP(I17,'Liste Associés'!A:E,5,FALSE)","v":{"$error":"#N/A"}},{"$f":"IF(Tableau2[[#This Row],[Nature Opération]]=\"Apport\",1,-1)","v":-1}]
[null,null,{"$f":"VLOOKUP(B18,'Liste Associés'!A:E,5,FALSE)","v":{"$error":"#N/A"}},{"$f":"VLOOKUP(B18,'Liste Associés'!A:E,2,FALSE)","v":{"$error":"#N/A"}},{"$f":"VLOOKUP(B18,'Liste Associés'!A:E,3,FALSE)","v":{"$error":"#N/A"}},{"$f":"VLOOKUP(B18,'Liste Associés'!A:E,4,FALSE)","v":{"$error":"#N/A"}},null,17,null,{"$f":"VLOOKUP(I18,'Liste Associés'!A:E,5,FALSE)","v":{"$error":"#N/A"}},{"$f":"IF(Tableau2[[#This Row],[Nature Opération]]=\"Apport\",1,-1)","v":-1}]
[null,null,{"$f":"VLOOKUP(B19,'Liste Associés'!A:E,5,FALSE)","v":{"$error":"#N/A"}},{"$f":"VLOOKUP(B19,'Liste Associés'!A:E,2,FALSE)","v":{"$error":"#N/A"}},{"$f":"VLOOKUP(B19,'Liste Associés'!A:E,3,FALSE)","v":{"$error":"#N/A"}},{"$f":"VLOOKUP(B19,'Liste Associés'!A:E,4,FALSE)","v":{"$error":"#N/A"}},null,18,null,{"$f":"VLOOKUP(I19,'Liste Associés'!A:E,5,FALSE)","v":{"$error":"#N/A"}},{"$f":"IF(Tableau2[[#This Row],[Nature Opération]]=\"Apport\",1,-1)","v":-1}]
[null,null,{"$f":"VLOOKUP(B20,'Liste Associés'!A:E,5,FALSE)","v":{"$error":"#N/A"}},{"$f":"VLOOKUP(B20,'Liste Associés'!A:E,2,FALSE)","v":{"$error":"#N/A"}},{"$f":"VLOOKUP(B20,'Liste Associés'!A:E,3,FALSE)","v":{"$error":"#N/A"}},{"$f":"VLOOKUP(B20,'Liste Associés'!A:E,4,FALSE)","v":{"$error":"#N/A"}},null,19,null,{"$f":"VLOOKUP(I20,'Liste Associés'!A:E,5,FALSE)","v":{"$error":"#N/A"}},{"$f":"IF(Tableau2[[#This Row],[Nature Opération]]=\"Apport\",1,-1)","v":-1}]
[null,null,{"$f":"VLOOKUP(B21,'Liste Associés'!A:E,5,FALSE)","v":{"$error":"#N/A"}},{"$f":"VLOOKUP(B21,'Liste Associés'!A:E,2,FALSE)","v":{"$error":"#N/A"}},{"$f":"VLOOKUP(B21,'Liste Associés'!A:E,3,FALSE)","v":{"$error":"#N/A"}},{"$f":"VLOOKUP(B21,'Liste Associés'!A:E,4,FALSE)","v":{"$error":"#N/A"}},null,20,null,{"$f":"VLOOKUP(I21,'Liste Associés'!A:E,5,FALSE)","v":{"$error":"#N/A"}},{"$f":"IF(Tableau2[[#This Row],[Nature Opération]]=\"Apport\",1,-1)","v":-1}]
[null,null,{"$f":"VLOOKUP(B22,'Liste Associés'!A:E,5,FALSE)","v":{"$error":"#N/A"}},{"$f":"VLOOKUP(B22,'Liste Associés'!A:E,2,FALSE)","v":{"$error":"#N/A"}},{"$f":"VLOOKUP(B22,'Liste Associés'!A:E,3,FALSE)","v":{"$error":"#N/A"}},{"$f":"VLOOKUP(B22,'Liste Associés'!A:E,4,FALSE)","v":{"$error":"#N/A"}},null,21,null,{"$f":"VLOOKUP(I22,'Liste Associés'!A:E,5,FALSE)","v":{"$error":"#N/A"}},{"$f":"IF(Tableau2[[#This Row],[Nature Opération]]=\"Apport\",1,-1)","v":-1}]
[null,null,{"$f":"VLOOKUP(B23,'Liste Associés'!A:E,5,FALSE)","v":{"$error":"#N/A"}},{"$f":"VLOOKUP(B23,'Liste Associés'!A:E,2,FALSE)","v":{"$error":"#N/A"}},{"$f":"VLOOKUP(B23,'Liste Associés'!A:E,3,FALSE)","v":{"$error":"#N/A"}},{"$f":"VLOOKUP(B23,'Liste Associés'!A:E,4,FALSE)","v":{"$error":"#N/A"}},null,22,null,{"$f":"VLOOKUP(I23,'Liste Associés'!A:E,5,FALSE)","v":{"$error":"#N/A"}},{"$f":"IF(Tableau2[[#This Row],[Nature Opération]]=\"Apport\",1,-1)","v":-1}]
[null,null,{"$f":"VLOOKUP(B24,'Liste Associés'!A:E,5,FALSE)","v":{"$error":"#N/A"}},{"$f":"VLOOKUP(B24,'Liste Associés'!A:E,2,FALSE)","v":{"$error":"#N/A"}},{"$f":"VLOOKUP(B24,'Liste Associés'!A:E,3,FALSE)","v":{"$error":"#N/A"}},{"$f":"VLOOKUP(B24,'Liste Associés'!A:E,4,FALSE)","v":{"$error":"#N/A"}},null,23,null,{"$f":"VLOOKUP(I24,'Liste Associés'!A:E,5,FALSE)","v":{"$error":"#N/A"}},{"$f":"IF(Tableau2[[#This Row],[Nature Opération]]=\"Apport\",1,-1)","v":-1}]
[null,null,{"$f":"VLOOKUP(B25,'Liste Associés'!A:E,5,FALSE)","v":{"$error":"#N/A"}},{"$f":"VLOOKUP(B25,'Liste Associés'!A:E,2,FALSE)","v":{"$error":"#N/A"}},{"$f":"VLOOKUP(B25,'Liste Associés'!A:E,3,FALSE)","v":{"$error":"#N/A"}},{"$f":"VLOOKUP(B25,'Liste Associés'!A:E,4,FALSE)","v":{"$error":"#N/A"}},null,24,null,{"$f":"VLOOKUP(I25,'Liste Associés'!A:E,5,FALSE)","v":{"$error":"#N/A"}},{"$f":"IF(Tableau2[[#This Row],[Nature Opération]]=\"Apport\",1,-1)","v":-1}]
[null,null,{"$f":"VLOOKUP(B26,'Liste Associés'!A:E,5,FALSE)","v":{"$error":"#N/A"}},{"$f":"VLOOKUP(B26,'Liste Associés'!A:E,2,FALSE)","v":{"$error":"#N/A"}},{"$f":"VLOOKUP(B26,'Liste Associés'!A:E,3,FALSE)","v":{"$error":"#N/A"}},{"$f":"VLOOKUP(B26,'Liste Associés'!A:E,4,FALSE)","v":{"$error":"#N/A"}},null,25,null,{"$f":"VLOOKUP(I26,'Liste Associés'!A:E,5,FALSE)","v":{"$error":"#N/A"}},{"$f":"IF(Tableau2[[#This Row],[Nature Opération]]=\"Apport\",1,-1)","v":-1}]
[null,null,{"$f":"VLOOKUP(B27,'Liste Associés'!A:E,5,FALSE)","v":{"$error":"#N/A"}},{"$f":"VLOOKUP(B27,'Liste Associés'!A:E,2,FALSE)","v":{"$error":"#N/A"}},{"$f":"VLOOKUP(B27,'Liste Associés'!A:E,3,FALSE)","v":{"$error":"#N/A"}},{"$f":"VLOOKUP(B27,'Liste Associés'!A:E,4,FALSE)","v":{"$error":"#N/A"}},null,26,null,{"$f":"VLOOKUP(I27,'Liste Associés'!A:E,5,FALSE)","v":{"$error":"#N/A"}},{"$f":"IF(Tableau2[[#This Row],[Nature Opération]]=\"Apport\",1,-1)","v":-1}]
[null,null,{"$f":"VLOOKUP(B28,'Liste Associés'!A:E,5,FALSE)","v":{"$error":"#N/A"}},{"$f":"VLOOKUP(B28,'Liste Associés'!A:E,2,FALSE)","v":{"$error":"#N/A"}},{"$f":"VLOOKUP(B28,'Liste Associés'!A:E,3,FALSE)","v":{"$error":"#N/A"}},{"$f":"VLOOKUP(B28,'Liste Associés'!A:E,4,FALSE)","v":{"$error":"#N/A"}},null,27,null,{"$f":"VLOOKUP(I28,'Liste Associés'!A:E,5,FALSE)","v":{"$error":"#N/A"}},{"$f":"IF(Tableau2[[#This Row],[Nature Opération]]=\"Apport\",1,-1)","v":-1}]
[null,null,{"$f":"VLOOKUP(B29,'Liste Associés'!A:E,5,FALSE)","v":{"$error":"#N/A"}},{"$f":"VLOOKUP(B29,'Liste Associés'!A:E,2,FALSE)","v":{"$error":"#N/A"}},{"$f":"VLOOKUP(B29,'Liste Associés'!A:E,3,FALSE)","v":{"$error":"#N/A"}},{"$f":"VLOOKUP(B29,'Liste Associés'!A:E,4,FALSE)","v":{"$error":"#N/A"}},null,28,null,{"$f":"VLOOKUP(I29,'Liste Associés'!A:E,5,FALSE)","v":{"$error":"#N/A"}},{"$f":"IF(Tableau2[[#This Row],[Nature Opération]]=\"Apport\",1,-1)","v":-1}]
[null,null,{"$f":"VLOOKUP(B30,'Liste Associés'!A:E,5,FALSE)","v":{"$error":"#N/A"}},{"$f":"VLOOKUP(B30,'Liste Associés'!A:E,2,FALSE)","v":{"$error":"#N/A"}},{"$f":"VLOOKUP(B30,'Liste Associés'!A:E,3,FALSE)","v":{"$error":"#N/A"}},{"$f":"VLOOKUP(B30,'Liste Associés'!A:E,4,FALSE)","v":{"$error":"#N/A"}},null,null,null,{"$f":"VLOOKUP(I30,'Liste Associés'!A:E,5,FALSE)","v":{"$error":"#N/A"}},{"$f":"IF(Tableau2[[#This Row],[Nature Opération]]=\"Apport\",1,-1)","v":-1}]
[null,null,{"$f":"VLOOKUP(B31,'Liste Associés'!A:E,5,FALSE)","v":{"$error":"#N/A"}},{"$f":"VLOOKUP(B31,'Liste Associés'!A:E,2,FALSE)","v":{"$error":"#N/A"}},{"$f":"VLOOKUP(B31,'Liste Associés'!A:E,3,FALSE)","v":{"$error":"#N/A"}},{"$f":"VLOOKUP(B31,'Liste Associés'!A:E,4,FALSE)","v":{"$error":"#N/A"}},null,null,null,{"$f":"VLOOKUP(I31,'Liste Associés'!A:E,5,FALSE)","v":{"$error":"#N/A"}},{"$f":"IF(Tableau2[[#This Row],[Nature Opération]]=\"Apport\",1,-1)","v":-1}]
[null,null,{"$f":"VLOOKUP(B32,'Liste Associés'!A:E,5,FALSE)","v":{"$error":"#N/A"}},{"$f":"VLOOKUP(B32,'Liste Associés'!A:E,2,FALSE)","v":{"$error":"#N/A"}},{"$f":"VLOOKUP(B32,'Liste Associés'!A:E,3,FALSE)","v":{"$error":"#N/A"}},{"$f":"VLOOKUP(B32,'Liste Associés'!A:E,4,FALSE)","v":{"$error":"#N/A"}},null,null,null,{"$f":"VLOOKUP(I32,'Liste Associés'!A:E,5,FALSE)","v":{"$error":"#N/A"}},{"$f":"IF(Tableau2[[#This Row],[Nature Opération]]=\"Apport\",1,-1)","v":-1}]
[null,null,{"$f":"VLOOKUP(B33,'Liste Associés'!A:E,5,FALSE)","v":{"$error":"#N/A"}},{"$f":"VLOOKUP(B33,'Liste Associés'!A:E,2,FALSE)","v":{"$error":"#N/A"}},{"$f":"VLOOKUP(B33,'Liste Associés'!A:E,3,FALSE)","v":{"$error":"#N/A"}},{"$f":"VLOOKUP(B33,'Liste Associés'!A:E,4,FALSE)","v":{"$error":"#N/A"}},null,null,null,{"$f":"VLOOKUP(I33,'Liste Associés'!A:E,5,FALSE)","v":{"$error":"#N/A"}},{"$f":"IF(Tableau2[[#This Row],[Nature Opération]]=\"Apport\",1,-1)","v":-1}]
[null,null,{"$f":"VLOOKUP(B34,'Liste Associés'!A:E,5,FALSE)","v":{"$error":"#N/A"}},{"$f":"VLOOKUP(B34,'Liste Associés'!A:E,2,FALSE)","v":{"$error":"#N/A"}},{"$f":"VLOOKUP(B34,'Liste Associés'!A:E,3,FALSE)","v":{"$error":"#N/A"}},{"$f":"VLOOKUP(B34,'Liste Associés'!A:E,4,FALSE)","v":{"$error":"#N/A"}},null,null,null,{"$f":"VLOOKUP(I34,'Liste Associés'!A:E,5,FALSE)","v":{"$error":"#N/A"}},{"$f":"IF(Tableau2[[#This Row],[Nature Opération]]=\"Apport\",1,-1)","v":-1}]
[null,null,{"$f":"VLOOKUP(B35,'Liste Associés'!A:E,5,FALSE)","v":{"$error":"#N/A"}},{"$f":"VLOOKUP(B35,'Liste Associés'!A:E,2,FALSE)","v":{"$error":"#N/A"}},{"$f":"VLOOKUP(B35,'Liste Associés'!A:E,3,FALSE)","v":{"$error":"#N/A"}},{"$f":"VLOOKUP(B35,'Liste Associés'!A:E,4,FALSE)","v":{"$error":"#N/A"}},null,null,null,{"$f":"VLOOKUP(I35,'Liste Associés'!A:E,5,FALSE)","v":{"$error":"#N/A"}},{"$f":"IF(Tableau2[[#This Row],[Nature Opération]]=\"Apport\",1,-1)","v":-1}]
[null,null,{"$f":"VLOOKUP(B36,'Liste Associés'!A:E,5,FALSE)","v":{"$error":"#N/A"}},{"$f":"VLOOKUP(B36,'Liste Associés'!A:E,2,FALSE)","v":{"$error":"#N/A"}},{"$f":"VLOOKUP(B36,'Liste Associés'!A:E,3,FALSE)","v":{"$error":"#N/A"}},{"$f":"VLOOKUP(B36,'Liste Associés'!A:E,4,FALSE)","v":{"$error":"#N/A"}},null,null,null,{"$f":"VLOOKUP(I36,'Liste Associés'!A:E,5,FALSE)","v":{"$error":"#N/A"}},{"$f":"IF(Tableau2[[#This Row],[Nature Opération]]=\"Apport\",1,-1)","v":-1}]
[null,null,{"$f":"VLOOKUP(B37,'Liste Associés'!A:E,5,FALSE)","v":{"$error":"#N/A"}},{"$f":"VLOOKUP(B37,'Liste Associés'!A:E,2,FALSE)","v":{"$error":"#N/A"}},{"$f":"VLOOKUP(B37,'Liste Associés'!A:E,3,FALSE)","v":{"$error":"#N/A"}},{"$f":"VLOOKUP(B37,'Liste Associés'!A:E,4,FALSE)","v":{"$error":"#N/A"}},null,null,null,{"$f":"VLOOKUP(I37,'Liste Associés'!A:E,5,FALSE)","v":{"$error":"#N/A"}},{"$f":"IF(Tableau2[[#This Row],[Nature Opération]]=\"Apport\",1,-1)","v":-1}]
[null,null,{"$f":"VLOOKUP(B38,'Liste Associés'!A:E,5,FALSE)","v":{"$error":"#N/A"}},{"$f":"VLOOKUP(B38,'Liste Associés'!A:E,2,FALSE)","v":{"$error":"#N/A"}},{"$f":"VLOOKUP(B38,'Liste Associés'!A:E,3,FALSE)","v":{"$error":"#N/A"}},{"$f":"VLOOKUP(B38,'Liste Associés'!A:E,4,FALSE)","v":{"$error":"#N/A"}},null,null,null,{"$f":"VLOOKUP(I38,'Liste Associés'!A:E,5,FALSE)","v":{"$error":"#N/A"}},{"$f":"IF(Tableau2[[#This Row],[Nature Opération]]=\"Apport\",1,-1)","v":-1}]
[null,null,{"$f":"VLOOKUP(B39,'Liste Associés'!A:E,5,FALSE)","v":{"$error":"#N/A"}},{"$f":"VLOOKUP(B39,'Liste Associés'!A:E,2,FALSE)","v":{"$error":"#N/A"}},{"$f":"VLOOKUP(B39,'Liste Associés'!A:E,3,FALSE)","v":{"$error":"#N/A"}},{"$f":"VLOOKUP(B39,'Liste Associés'!A:E,4,FALSE)","v":{"$error":"#N/A"}},null,null,null,{"$f":"VLOOKUP(I39,'Liste Associés'!A:E,5,FALSE)","v":{"$error":"#N/A"}},{"$f":"IF(Tableau2[[#This Row],[Nature Opération]]=\"Apport\",1,-1)","v":-1}]
[null,null,{"$f":"VLOOKUP(B40,'Liste Associés'!A:E,5,FALSE)","v":{"$error":"#N/A"}},{"$f":"VLOOKUP(B40,'Liste Associés'!A:E,2,FALSE)","v":{"$error":"#N/A"}},{"$f":"VLOOKUP(B40,'Liste Associés'!A:E,3,FALSE)","v":{"$error":"#N/A"}},{"$f":"VLOOKUP(B40,'Liste Associés'!A:E,4,FALSE)","v":{"$error":"#N/A"}},null,null,null,{"$f":"VLOOKUP(I40,'Liste Associés'!A:E,5,FALSE)","v":{"$error":"#N/A"}},{"$f":"IF(Tableau2[[#This Row],[Nature Opération]]=\"Apport\",1,-1)","v":-1}]
[null,null,{"$f":"VLOOKUP(B41,'Liste Associés'!A:E,5,FALSE)","v":{"$error":"#N/A"}},{"$f":"VLOOKUP(B41,'Liste Associés'!A:E,2,FALSE)","v":{"$error":"#N/A"}},{"$f":"VLOOKUP(B41,'Liste Associés'!A:E,3,FALSE)","v":{"$error":"#N/A"}},{"$f":"VLOOKUP(B41,'Liste Associés'!A:E,4,FALSE)","v":{"$error":"#N/A"}},null,null,null,{"$f":"VLOOKUP(I41,'Liste Associés'!A:E,5,FALSE)","v":{"$error":"#N/A"}},{"$f":"IF(Tableau2[[#This Row],[Nature Opération]]=\"Apport\",1,-1)","v":-1}]
[null,null,{"$f":"VLOOKUP(B42,'Liste Associés'!A:E,5,FALSE)","v":{"$error":"#N/A"}},{"$f":"VLOOKUP(B42,'Liste Associés'!A:E,2,FALSE)","v":{"$error":"#N/A"}},{"$f":"VLOOKUP(B42,'Liste Associés'!A:E,3,FALSE)","v":{"$error":"#N/A"}},{"$f":"VLOOKUP(B42,'Liste Associés'!A:E,4,FALSE)","v":{"$error":"#N/A"}},null,null,null,{"$f":"VLOOKUP(I42,'Liste Associés'!A:E,5,FALSE)","v":{"$error":"#N/A"}},{"$f":"IF(Tableau2[[#This Row],[Nature Opération]]=\"Apport\",1,-1)","v":-1}]
[null,null,{"$f":"VLOOKUP(B43,'Liste Associés'!A:E,5,FALSE)","v":{"$error":"#N/A"}},{"$f":"VLOOKUP(B43,'Liste Associés'!A:E,2,FALSE)","v":{"$error":"#N/A"}},{"$f":"VLOOKUP(B43,'Liste Associés'!A:E,3,FALSE)","v":{"$error":"#N/A"}},{"$f":"VLOOKUP(B43,'Liste Associés'!A:E,4,FALSE)","v":{"$error":"#N/A"}},null,null,null,{"$f":"VLOOKUP(I43,'Liste Associés'!A:E,5,FALSE)","v":{"$error":"#N/A"}},{"$f":"IF(Tableau2[[#This Row],[Nature Opération]]=\"Apport\",1,-1)","v":-1}]
[null,null,{"$f":"VLOOKUP(B44,'Liste Associés'!A:E,5,FALSE)","v":{"$error":"#N/A"}},{"$f":"VLOOKUP(B44,'Liste Associés'!A:E,2,FALSE)","v":{"$error":"#N/A"}},{"$f":"VLOOKUP(B44,'Liste Associés'!A:E,3,FALSE)","v":{"$error":"#N/A"}},{"$f":"VLOOKUP(B44,'Liste Associés'!A:E,4,FALSE)","v":{"$error":"#N/A"}},null,null,null,{"$f":"VLOOKUP(I44,'Liste Associés'!A:E,5,FALSE)","v":{"$error":"#N/A"}},{"$f":"IF(Tableau2[[#This Row],[Nature Opération]]=\"Apport\",1,-1)","v":-1}]
[null,null,{"$f":"VLOOKUP(B45,'Liste Associés'!A:E,5,FALSE)","v":{"$error":"#N/A"}},{"$f":"VLOOKUP(B45,'Liste Associés'!A:E,2,FALSE)","v":{"$error":"#N/A"}},{"$f":"VLOOKUP(B45,'Liste Associés'!A:E,3,FALSE)","v":{"$error":"#N/A"}},{"$f":"VLOOKUP(B45,'Liste Associés'!A:E,4,FALSE)","v":{"$error":"#N/A"}},null,null,null,{"$f":"VLOOKUP(I45,'Liste Associés'!A:E,5,FALSE)","v":{"$error":"#N/A"}},{"$f":"IF(Tableau2[[#This Row],[Nature Opération]]=\"Apport\",1,-1)","v":-1}]
[null,null,{"$f":"VLOOKUP(B46,'Liste Associés'!A:E,5,FALSE)","v":{"$error":"#N/A"}},{"$f":"VLOOKUP(B46,'Liste Associés'!A:E,2,FALSE)","v":{"$error":"#N/A"}},{"$f":"VLOOKUP(B46,'Liste Associés'!A:E,3,FALSE)","v":{"$error":"#N/A"}},{"$f":"VLOOKUP(B46,'Liste Associés'!A:E,4,FALSE)","v":{"$error":"#N/A"}},null,null,null,{"$f":"VLOOKUP(I46,'Liste Associés'!A:E,5,FALSE)","v":{"$error":"#N/A"}},{"$f":"IF(Tableau2[[#This Row],[Nature Opération]]=\"Apport\",1,-1)","v":-1}]
[null,null,{"$f":"VLOOKUP(B47,'Liste Associés'!A:E,5,FALSE)","v":{"$error":"#N/A"}},{"$f":"VLOOKUP(B47,'Liste Associés'!A:E,2,FALSE)","v":{"$error":"#N/A"}},{"$f":"VLOOKUP(B47,'Liste Associés'!A:E,3,FALSE)","v":{"$error":"#N/A"}},{"$f":"VLOOKUP(B47,'Liste Associés'!A:E,4,FALSE)","v":{"$error":"#N/A"}},null,null,null,{"$f":"VLOOKUP(I47,'Liste Associés'!A:E,5,FALSE)","v":{"$error":"#N/A"}},{"$f":"IF(Tableau2[[#This Row],[Nature Opération]]=\"Apport\",1,-1)","v":-1}]
[null,null,{"$f":"VLOOKUP(B48,'Liste Associés'!A:E,5,FALSE)","v":{"$error":"#N/A"}},{"$f":"VLOOKUP(B48,'Liste Associés'!A:E,2,FALSE)","v":{"$error":"#N/A"}},{"$f":"VLOOKUP(B48,'Liste Associés'!A:E,3,FALSE)","v":{"$error":"#N/A"}},{"$f":"VLOOKUP(B48,'Liste Associés'!A:E,4,FALSE)","v":{"$error":"#N/A"}},null,null,null,{"$f":"VLOOKUP(I48,'Liste Associés'!A:E,5,FALSE)","v":{"$error":"#N/A"}},{"$f":"IF(Tableau2[[#This Row],[Nature Opération]]=\"Apport\",1,-1)","v":-1}]
[null,null,{"$f":"VLOOKUP(B49,'Liste Associés'!A:E,5,FALSE)","v":{"$error":"#N/A"}},{"$f":"VLOOKUP(B49,'Liste Associés'!A:E,2,FALSE)","v":{"$error":"#N/A"}},{"$f":"VLOOKUP(B49,'Liste Associés'!A:E,3,FALSE)","v":{"$error":"#N/A"}},{"$f":"VLOOKUP(B49,'Liste Associés'!A:E,4,FALSE)","v":{"$error":"#N/A"}},null,null,null,{"$f":"VLOOKUP(I49,'Liste Associés'!A:E,5,FALSE)","v":{"$error":"#N/A"}},{"$f":"IF(Tableau2[[#This Row],[Nature Opération]]=\"Apport\",1,-1)","v":-1}]
[null,null,{"$f":"VLOOKUP(B50,'Liste Associés'!A:E,5,FALSE)","v":{"$error":"#N/A"}},{"$f":"VLOOKUP(B50,'Liste Associés'!A:E,2,FALSE)","v":{"$error":"#N/A"}},{"$f":"VLOOKUP(B50,'Liste Associés'!A:E,3,FALSE)","v":{"$error":"#N/A"}},{"$f":"VLOOKUP(B50,'Liste Associés'!A:E,4,FALSE)","v":{"$error":"#N/A"}},null,null,null,{"$f":"VLOOKUP(I50,'Liste Associés'!A:E,5,FALSE)","v":{"$error":"#N/A"}},{"$f":"IF(Tableau2[[#This Row],[Nature Opération]]=\"Apport\",1,-1)","v":-1}]
[null,null,{"$f":"VLOOKUP(B51,'Liste Associés'!A:E,5,FALSE)","v":{"$error":"#N/A"}},{"$f":"VLOOKUP(B51,'Liste Associés'!A:E,2,FALSE)","v":{"$error":"#N/A"}},{"$f":"VLOOKUP(B51,'Liste Associés'!A:E,3,FALSE)","v":{"$error":"#N/A"}},{"$f":"VLOOKUP(B51,'Liste Associés'!A:E,4,FALSE)","v":{"$error":"#N/A"}},null,null,null,{"$f":"VLOOKUP(I51,'Liste Associés'!A:E,5,FALSE)","v":{"$error":"#N/A"}},{"$f":"IF(Tableau2[[#This Row],[Nature Opération]]=\"Apport\",1,-1)","v":-1}]
[null,null,{"$f":"VLOOKUP(B52,'Liste Associés'!A:E,5,FALSE)","v":{"$error":"#N/A"}},{"$f":"VLOOKUP(B52,'Liste Associés'!A:E,2,FALSE)","v":{"$error":"#N/A"}},{"$f":"VLOOKUP(B52,'Liste Associés'!A:E,3,FALSE)","v":{"$error":"#N/A"}},{"$f":"VLOOKUP(B52,'Liste Associés'!A:E,4,FALSE)","v":{"$error":"#N/A"}},null,null,null,{"$f":"VLOOKUP(I52,'Liste Associés'!A:E,5,FALSE)","v":{"$error":"#N/A"}},{"$f":"IF(Tableau2[[#This Row],[Nature Opération]]=\"Apport\",1,-1)","v":-1}]
[null,null,{"$f":"VLOOKUP(B53,'Liste Associés'!A:E,5,FALSE)","v":{"$error":"#N/A"}},{"$f":"VLOOKUP(B53,'Liste Associés'!A:E,2,FALSE)","v":{"$error":"#N/A"}},{"$f":"VLOOKUP(B53,'Liste Associés'!A:E,3,FALSE)","v":{"$error":"#N/A"}},{"$f":"VLOOKUP(B53,'Liste Associés'!A:E,4,FALSE)","v":{"$error":"#N/A"}},null,null,null,{"$f":"VLOOKUP(I53,'Liste Associés'!A:E,5,FALSE)","v":{"$error":"#N/A"}},{"$f":"IF(Tableau2[[#This Row],[Nature Opération]]=\"Apport\",1,-1)","v":-1}]
[null,null,{"$f":"VLOOKUP(B54,'Liste Associés'!A:E,5,FALSE)","v":{"$error":"#N/A"}},{"$f":"VLOOKUP(B54,'Liste Associés'!A:E,2,FALSE)","v":{"$error":"#N/A"}},{"$f":"VLOOKUP(B54,'Liste Associés'!A:E,3,FALSE)","v":{"$error":"#N/A"}},{"$f":"VLOOKUP(B54,'Liste Associés'!A:E,4,FALSE)","v":{"$error":"#N/A"}},null,null,null,{"$f":"VLOOKUP(I54,'Liste Associés'!A:E,5,FALSE)","v":{"$error":"#N/A"}},{"$f":"IF(Tableau2[[#This Row],[Nature Opération]]=\"Apport\",1,-1)","v":-1}]
[null,null,{"$f":"VLOOKUP(B55,'Liste Associés'!A:E,5,FALSE)","v":{"$error":"#N/A"}},{"$f":"VLOOKUP(B55,'Liste Associés'!A:E,2,FALSE)","v":{"$error":"#N/A"}},{"$f":"VLOOKUP(B55,'Liste Associés'!A:E,3,FALSE)","v":{"$error":"#N/A"}},{"$f":"VLOOKUP(B55,'Liste Associés'!A:E,4,FALSE)","v":{"$error":"#N/A"}},null,null,null,{"$f":"VLOOKUP(I55,'Liste Associés'!A:E,5,FALSE)","v":{"$error":"#N/A"}},{"$f":"IF(Tableau2[[#This Row],[Nature Opération]]=\"Apport\",1,-1)","v":-1}]
[null,null,{"$f":"VLOOKUP(B56,'Liste Associés'!A:E,5,FALSE)","v":{"$error":"#N/A"}},{"$f":"VLOOKUP(B56,'Liste Associés'!A:E,2,FALSE)","v":{"$error":"#N/A"}},{"$f":"VLOOKUP(B56,'Liste Associés'!A:E,3,FALSE)","v":{"$error":"#N/A"}},{"$f":"VLOOKUP(B56,'Liste Associés'!A:E,4,FALSE)","v":{"$error":"#N/A"}},null,null,null,{"$f":"VLOOKUP(I56,'Liste Associés'!A:E,5,FALSE)","v":{"$error":"#N/A"}},{"$f":"IF(Tableau2[[#This Row],[Nature Opération]]=\"Apport\",1,-1)","v":-1}]
[null,null,{"$f":"VLOOKUP(B57,'Liste Associés'!A:E,5,FALSE)","v":{"$error":"#N/A"}},{"$f":"VLOOKUP(B57,'Liste Associés'!A:E,2,FALSE)","v":{"$error":"#N/A"}},{"$f":"VLOOKUP(B57,'Liste Associés'!A:E,3,FALSE)","v":{"$error":"#N/A"}},{"$f":"VLOOKUP(B57,'Liste Associés'!A:E,4,FALSE)","v":{"$error":"#N/A"}},null,null,null,{"$f":"VLOOKUP(I57,'Liste Associés'!A:E,5,FALSE)","v":{"$error":"#N/A"}},{"$f":"IF(Tableau2[[#This Row],[Nature Opération]]=\"Apport\",1,-1)","v":-1}]
[null,null,{"$f":"VLOOKUP(B58,'Liste Associés'!A:E,5,FALSE)","v":{"$error":"#N/A"}},{"$f":"VLOOKUP(B58,'Liste Associés'!A:E,2,FALSE)","v":{"$error":"#N/A"}},{"$f":"VLOOKUP(B58,'Liste Associés'!A:E,3,FALSE)","v":{"$error":"#N/A"}},{"$f":"VLOOKUP(B58,'Liste Associés'!A:E,4,FALSE)","v":{"$error":"#N/A"}},null,null,null,{"$f":"VLOOKUP(I58,'Liste Associés'!A:E,5,FALSE)","v":{"$error":"#N/A"}},{"$f":"IF(Tableau2[[#This Row],[Nature Opération]]=\"Apport\",1,-1)","v":-1}]
[null,null,{"$f":"VLOOKUP(B59,'Liste Associés'!A:E,5,FALSE)","v":{"$error":"#N/A"}},{"$f":"VLOOKUP(B59,'Liste Associés'!A:E,2,FALSE)","v":{"$error":"#N/A"}},{"$f":"VLOOKUP(B59,'Liste Associés'!A:E,3,FALSE)","v":{"$error":"#N/A"}},{"$f":"VLOOKUP(B59,'Liste Associés'!A:E,4,FALSE)","v":{"$error":"#N/A"}},null,null,null,{"$f":"VLOOKUP(I59,'Liste Associés'!A:E,5,FALSE)","v":{"$error":"#N/A"}},{"$f":"IF(Tableau2[[#This Row],[Nature Opération]]=\"Apport\",1,-1)","v":-1}]
[null,null,{"$f":"VLOOKUP(B60,'Liste Associés'!A:E,5,FALSE)","v":{"$error":"#N/A"}},{"$f":"VLOOKUP(B60,'Liste Associés'!A:E,2,FALSE)","v":{"$error":"#N/A"}},{"$f":"VLOOKUP(B60,'Liste Associés'!A:E,3,FALSE)","v":{"$error":"#N/A"}},{"$f":"VLOOKUP(B60,'Liste Associés'!A:E,4,FALSE)","v":{"$error":"#N/A"}},null,null,null,{"$f":"VLOOKUP(I60,'Liste Associés'!A:E,5,FALSE)","v":{"$error":"#N/A"}},{"$f":"IF(Tableau2[[#This Row],[Nature Opération]]=\"Apport\",1,-1)","v":-1}]
[null,null,{"$f":"VLOOKUP(B61,'Liste Associés'!A:E,5,FALSE)","v":{"$error":"#N/A"}},{"$f":"VLOOKUP(B61,'Liste Associés'!A:E,2,FALSE)","v":{"$error":"#N/A"}},{"$f":"VLOOKUP(B61,'Liste Associés'!A:E,3,FALSE)","v":{"$error":"#N/A"}},{"$f":"VLOOKUP(B61,'Liste Associés'!A:E,4,FALSE)","v":{"$error":"#N/A"}},null,null,null,{"$f":"VLOOKUP(I61,'Liste Associés'!A:E,5,FALSE)","v":{"$error":"#N/A"}},{"$f":"IF(Tableau2[[#This Row],[Nature Opération]]=\"Apport\",1,-1)","v":-1}]
[null,null,{"$f":"VLOOKUP(B62,'Liste Associés'!A:E,5,FALSE)","v":{"$error":"#N/A"}},{"$f":"VLOOKUP(B62,'Liste Associés'!A:E,2,FALSE)","v":{"$error":"#N/A"}},{"$f":"VLOOKUP(B62,'Liste Associés'!A:E,3,FALSE)","v":{"$error":"#N/A"}},{"$f":"VLOOKUP(B62,'Liste Associés'!A:E,4,FALSE)","v":{"$error":"#N/A"}},null,null,null,{"$f":"VLOOKUP(I62,'Liste Associés'!A:E,5,FALSE)","v":{"$error":"#N/A"}},{"$f":"IF(Tableau2[[#This Row],[Nature Opération]]=\"Apport\",1,-1)","v":-1}]
[null,null,{"$f":"VLOOKUP(B63,'Liste Associés'!A:E,5,FALSE)","v":{"$error":"#N/A"}},{"$f":"VLOOKUP(B63,'Liste Associés'!A:E,2,FALSE)","v":{"$error":"#N/A"}},{"$f":"VLOOKUP(B63,'Liste Associés'!A:E,3,FALSE)","v":{"$error":"#N/A"}},{"$f":"VLOOKUP(B63,'Liste Associés'!A:E,4,FALSE)","v":{"$error":"#N/A"}},null,null,null,{"$f":"VLOOKUP(I63,'Liste Associés'!A:E,5,FALSE)","v":{"$error":"#N/A"}},{"$f":"IF(Tableau2[[#This Row],[Nature Opération]]=\"Apport\",1,-1)","v":-1}]
[null,null,{"$f":"VLOOKUP(B64,'Liste Associés'!A:E,5,FALSE)","v":{"$error":"#N/A"}},{"$f":"VLOOKUP(B64,'Liste Associés'!A:E,2,FALSE)","v":{"$error":"#N/A"}},{"$f":"VLOOKUP(B64,'Liste Associés'!A:E,3,FALSE)","v":{"$error":"#N/A"}},{"$f":"VLOOKUP(B64,'Liste Associés'!A:E,4,FALSE)","v":{"$error":"#N/A"}},null,null,null,{"$f":"VLOOKUP(I64,'Liste Associés'!A:E,5,FALSE)","v":{"$error":"#N/A"}},{"$f":"IF(Tableau2[[#This Row],[Nature Opération]]=\"Apport\",1,-1)","v":-1}]
[null,null,{"$f":"VLOOKUP(B65,'Liste Associés'!A:E,5,FALSE)","v":{"$error":"#N/A"}},{"$f":"VLOOKUP(B65,'Liste Associés'!A:E,2,FALSE)","v":{"$error":"#N/A"}},{"$f":"VLOOKUP(B65,'Liste Associés'!A:E,3,FALSE)","v":{"$error":"#N/A"}},{"$f":"VLOOKUP(B65,'Liste Associés'!A:E,4,FALSE)","v":{"$error":"#N/A"}},null,null,null,{"$f":"VLOOKUP(I65,'Liste Associés'!A:E,5,FALSE)","v":{"$error":"#N/A"}},{"$f":"IF(Tableau2[[#This Row],[Nature Opération]]=\"Apport\",1,-1)","v":-1}]
[null,null,{"$f":"VLOOKUP(B66,'Liste Associés'!A:E,5,FALSE)","v":{"$error":"#N/A"}},{"$f":"VLOOKUP(B66,'Liste Associés'!A:E,2,FALSE)","v":{"$error":"#N/A"}},{"$f":"VLOOKUP(B66,'Liste Associés'!A:E,3,FALSE)","v":{"$error":"#N/A"}},{"$f":"VLOOKUP(B66,'Liste Associés'!A:E,4,FALSE)","v":{"$error":"#N/A"}},null,null,null,{"$f":"VLOOKUP(I66,'Liste Associés'!A:E,5,FALSE)","v":{"$error":"#N/A"}},{"$f":"IF(Tableau2[[#This Row],[Nature Opération]]=\"Apport\",1,-1)","v":-1}]
[null,null,{"$f":"VLOOKUP(B67,'Liste Associés'!A:E,5,FALSE)","v":{"$error":"#N/A"}},{"$f":"VLOOKUP(B67,'Liste Associés'!A:E,2,FALSE)","v":{"$error":"#N/A"}},{"$f":"VLOOKUP(B67,'Liste Associés'!A:E,3,FALSE)","v":{"$error":"#N/A"}},{"$f":"VLOOKUP(B67,'Liste Associés'!A:E,4,FALSE)","v":{"$error":"#N/A"}},null,null,null,{"$f":"VLOOKUP(I67,'Liste Associés'!A:E,5,FALSE)","v":{"$error":"#N/A"}},{"$f":"IF(Tableau2[[#This Row],[Nature Opération]]=\"Apport\",1,-1)","v":-1}]
[null,null,{"$f":"VLOOKUP(B68,'Liste Associés'!A:E,5,FALSE)","v":{"$error":"#N/A"}},{"$f":"VLOOKUP(B68,'Liste Associés'!A:E,2,FALSE)","v":{"$error":"#N/A"}},{"$f":"VLOOKUP(B68,'Liste Associés'!A:E,3,FALSE)","v":{"$error":"#N/A"}},{"$f":"VLOOKUP(B68,'Liste Associés'!A:E,4,FALSE)","v":{"$error":"#N/A"}},null,null,null,{"$f":"VLOOKUP(I68,'Liste Associés'!A:E,5,FALSE)","v":{"$error":"#N/A"}},{"$f":"IF(Tableau2[[#This Row],[Nature Opération]]=\"Apport\",1,-1)","v":-1}]
[null,null,{"$f":"VLOOKUP(B69,'Liste Associés'!A:E,5,FALSE)","v":{"$error":"#N/A"}},{"$f":"VLOOKUP(B69,'Liste Associés'!A:E,2,FALSE)","v":{"$error":"#N/A"}},{"$f":"VLOOKUP(B69,'Liste Associés'!A:E,3,FALSE)","v":{"$error":"#N/A"}},{"$f":"VLOOKUP(B69,'Liste Associés'!A:E,4,FALSE)","v":{"$error":"#N/A"}},null,null,null,{"$f":"VLOOKUP(I69,'Liste Associés'!A:E,5,FALSE)","v":{"$error":"#N/A"}},{"$f":"IF(Tableau2[[#This Row],[Nature Opération]]=\"Apport\",1,-1)","v":-1}]
[null,null,{"$f":"VLOOKUP(B70,'Liste Associés'!A:E,5,FALSE)","v":{"$error":"#N/A"}},{"$f":"VLOOKUP(B70,'Liste Associés'!A:E,2,FALSE)","v":{"$error":"#N/A"}},{"$f":"VLOOKUP(B70,'Liste Associés'!A:E,3,FALSE)","v":{"$error":"#N/A"}},{"$f":"VLOOKUP(B70,'Liste Associés'!A:E,4,FALSE)","v":{"$error":"#N/A"}},null,null,null,{"$f":"VLOOKUP(I70,'Liste Associés'!A:E,5,FALSE)","v":{"$error":"#N/A"}},{"$f":"IF(Tableau2[[#This Row],[Nature Opération]]=\"Apport\",1,-1)","v":-1}]
[null,null,{"$f":"VLOOKUP(B71,'Liste Associés'!A:E,5,FALSE)","v":{"$error":"#N/A"}},{"$f":"VLOOKUP(B71,'Liste Associés'!A:E,2,FALSE)","v":{"$error":"#N/A"}},{"$f":"VLOOKUP(B71,'Liste Associés'!A:E,3,FALSE)","v":{"$error":"#N/A"}},{"$f":"VLOOKUP(B71,'Liste Associés'!A:E,4,FALSE)","v":{"$error":"#N/A"}},null,null,null,{"$f":"VLOOKUP(I71,'Liste Associés'!A:E,5,FALSE)","v":{"$error":"#N/A"}},{"$f":"IF(Tableau2[[#This Row],[Nature Opération]]=\"Apport\",1,-1)","v":-1}]
[null,null,{"$f":"VLOOKUP(B72,'Liste Associés'!A:E,5,FALSE)","v":{"$error":"#N/A"}},{"$f":"VLOOKUP(B72,'Liste Associés'!A:E,2,FALSE)","v":{"$error":"#N/A"}},{"$f":"VLOOKUP(B72,'Liste Associés'!A:E,3,FALSE)","v":{"$error":"#N/A"}},{"$f":"VLOOKUP(B72,'Liste Associés'!A:E,4,FALSE)","v":{"$error":"#N/A"}},null,null,null,{"$f":"VLOOKUP(I72,'Liste Associés'!A:E,5,FALSE)","v":{"$error":"#N/A"}},{"$f":"IF(Tableau2[[#This Row],[Nature Opération]]=\"Apport\",1,-1)","v":-1}]
[null,null,{"$f":"VLOOKUP(B73,'Liste Associés'!A:E,5,FALSE)","v":{"$error":"#N/A"}},{"$f":"VLOOKUP(B73,'Liste Associés'!A:E,2,FALSE)","v":{"$error":"#N/A"}},{"$f":"VLOOKUP(B73,'Liste Associés'!A:E,3,FALSE)","v":{"$error":"#N/A"}},{"$f":"VLOOKUP(B73,'Liste Associés'!A:E,4,FALSE)","v":{"$error":"#N/A"}},null,null,null,{"$f":"VLOOKUP(I73,'Liste Associés'!A:E,5,FALSE)","v":{"$error":"#N/A"}},{"$f":"IF(Tableau2[[#This Row],[Nature Opération]]=\"Apport\",1,-1)","v":-1}]
[null,null,{"$f":"VLOOKUP(B74,'Liste Associés'!A:E,5,FALSE)","v":{"$error":"#N/A"}},{"$f":"VLOOKUP(B74,'Liste Associés'!A:E,2,FALSE)","v":{"$error":"#N/A"}},{"$f":"VLOOKUP(B74,'Liste Associés'!A:E,3,FALSE)","v":{"$error":"#N/A"}},{"$f":"VLOOKUP(B74,'Liste Associés'!A:E,4,FALSE)","v":{"$error":"#N/A"}},null,null,null,{"$f":"VLOOKUP(I74,'Liste Associés'!A:E,5,FALSE)","v":{"$error":"#N/A"}},{"$f":"IF(Tableau2[[#This Row],[Nature Opération]]=\"Apport\",1,-1)","v":-1}]
[null,null,{"$f":"VLOOKUP(B75,'Liste Associés'!A:E,5,FALSE)","v":{"$error":"#N/A"}},{"$f":"VLOOKUP(B75,'Liste Associés'!A:E,2,FALSE)","v":{"$error":"#N/A"}},{"$f":"VLOOKUP(B75,'Liste Associés'!A:E,3,FALSE)","v":{"$error":"#N/A"}},{"$f":"VLOOKUP(B75,'Liste Associés'!A:E,4,FALSE)","v":{"$error":"#N/A"}},null,null,null,{"$f":"VLOOKUP(I75,'Liste Associés'!A:E,5,FALSE)","v":{"$error":"#N/A"}},{"$f":"IF(Tableau2[[#This Row],[Nature Opération]]=\"Apport\",1,-1)","v":-1}]
[null,null,{"$f":"VLOOKUP(B76,'Liste Associés'!A:E,5,FALSE)","v":{"$error":"#N/A"}},{"$f":"VLOOKUP(B76,'Liste Associés'!A:E,2,FALSE)","v":{"$error":"#N/A"}},{"$f":"VLOOKUP(B76,'Liste Associés'!A:E,3,FALSE)","v":{"$error":"#N/A"}},{"$f":"VLOOKUP(B76,'Liste Associés'!A:E,4,FALSE)","v":{"$error":"#N/A"}},null,null,null,{"$f":"VLOOKUP(I76,'Liste Associés'!A:E,5,FALSE)","v":{"$error":"#N/A"}},{"$f":"IF(Tableau2[[#This Row],[Nature Opération]]=\"Apport\",1,-1)","v":-1}]
[null,null,{"$f":"VLOOKUP(B77,'Liste Associés'!A:E,5,FALSE)","v":{"$error":"#N/A"}},{"$f":"VLOOKUP(B77,'Liste Associés'!A:E,2,FALSE)","v":{"$error":"#N/A"}},{"$f":"VLOOKUP(B77,'Liste Associés'!A:E,3,FALSE)","v":{"$error":"#N/A"}},{"$f":"VLOOKUP(B77,'Liste Associés'!A:E,4,FALSE)","v":{"$error":"#N/A"}},null,null,null,{"$f":"VLOOKUP(I77,'Liste Associés'!A:E,5,FALSE)","v":{"$error":"#N/A"}},{"$f":"IF(Tableau2[[#This Row],[Nature Opération]]=\"Apport\",1,-1)","v":-1}]
[null,null,{"$f":"VLOOKUP(B78,'Liste Associés'!A:E,5,FALSE)","v":{"$error":"#N/A"}},{"$f":"VLOOKUP(B78,'Liste Associés'!A:E,2,FALSE)","v":{"$error":"#N/A"}},{"$f":"VLOOKUP(B78,'Liste Associés'!A:E,3,FALSE)","v":{"$error":"#N/A"}},{"$f":"VLOOKUP(B78,'Liste Associés'!A:E,4,FALSE)","v":{"$error":"#N/A"}},null,null,null,{"$f":"VLOOKUP(I78,'Liste Associés'!A:E,5,FALSE)","v":{"$error":"#N/A"}},{"$f":"IF(Tableau2[[#This Row],[Nature Opération]]=\"Apport\",1,-1)","v":-1}]
[null,null,{"$f":"VLOOKUP(B79,'Liste Associés'!A:E,5,FALSE)","v":{"$error":"#N/A"}},{"$f":"VLOOKUP(B79,'Liste Associés'!A:E,2,FALSE)","v":{"$error":"#N/A"}},{"$f":"VLOOKUP(B79,'Liste Associés'!A:E,3,FALSE)","v":{"$error":"#N/A"}},{"$f":"VLOOKUP(B79,'Liste Associés'!A:E,4,FALSE)","v":{"$error":"#N/A"}},null,null,null,{"$f":"VLOOKUP(I79,'Liste Associés'!A:E,5,FALSE)","v":{"$error":"#N/A"}},{"$f":"IF(Tableau2[[#This Row],[Nature Opération]]=\"Apport\",1,-1)","v":-1}]
[null,null,null,null,null,null,null,null,null,{"$f":"VLOOKUP(I80,'Liste Associés'!A:E,5,FALSE)","v":{"$error":"#N/A"}},{"$f":"IF(Tableau2[[#This Row],[Nature Opération]]=\"Apport\",1,-1)","v":-1}]
[null,null,null,null,null,null,null,null,null,{"$f":"VLOOKUP(I81,'Liste Associés'!A:E,5,FALSE)","v":{"$error":"#N/A"}},{"$f":"IF(Tableau2[[#This Row],[Nature Opération]]=\"Apport\",1,-1)","v":-1}]
[null,null,null,null,null,null,null,null,null,{"$f":"VLOOKUP(I82,'Liste Associés'!A:E,5,FALSE)","v":{"$error":"#N/A"}},{"$f":"IF(Tableau2[[#This Row],[Nature Opération]]=\"Apport\",1,-1)","v":-1}]
[null,null,null,null,null,null,null,null,null,{"$f":"VLOOKUP(I83,'Liste Associés'!A:E,5,FALSE)","v":{"$error":"#N/A"}},{"$f":"IF(Tableau2[[#This Row],[Nature Opération]]=\"Apport\",1,-1)","v":-1}]
[null,null,null,null,null,null,null,null,null,{"$f":"VLOOKUP(I84,'Liste Associés'!A:E,5,FALSE)","v":{"$error":"#N/A"}},{"$f":"IF(Tableau2[[#This Row],[Nature Opération]]=\"Apport\",1,-1)","v":-1}]
[null,null,null,null,null,null,null,null,null,{"$f":"VLOOKUP(I85,'Liste Associés'!A:E,5,FALSE)","v":{"$error":"#N/A"}},{"$f":"IF(Tableau2[[#This Row],[Nature Opération]]=\"Apport\",1,-1)","v":-1}]
[null,null,null,null,null,null,null,null,null,{"$f":"VLOOKUP(I86,'Liste Associés'!A:E,5,FALSE)","v":{"$error":"#N/A"}},{"$f":"IF(Tableau2[[#This Row],[Nature Opération]]=\"Apport\",1,-1)","v":-1}]
[null,null,null,null,null,null,null,null,null,{"$f":"VLOOKUP(I87,'Liste Associés'!A:E,5,FALSE)","v":{"$error":"#N/A"}},{"$f":"IF(Tableau2[[#This Row],[Nature Opération]]=\"Apport\",1,-1)","v":-1}]
[null,null,null,null,null,null,null,null,null,{"$f":"VLOOKUP(I88,'Liste Associés'!A:E,5,FALSE)","v":{"$error":"#N/A"}},{"$f":"IF(Tableau2[[#This Row],[Nature Opération]]=\"Apport\",1,-1)","v":-1}]
[null,null,null,null,null,null,null,null,null,{"$f":"VLOOKUP(I89,'Liste Associés'!A:E,5,FALSE)","v":{"$error":"#N/A"}},{"$f":"IF(Tableau2[[#This Row],[Nature Opération]]=\"Apport\",1,-1)","v":-1}]
[null,null,null,null,null,null,null,null,null,{"$f":"VLOOKUP(I90,'Liste Associés'!A:E,5,FALSE)","v":{"$error":"#N/A"}},{"$f":"IF(Tableau2[[#This Row],[Nature Opération]]=\"Apport\",1,-1)","v":-1}]
[null,null,null,null,null,null,null,null,null,{"$f":"VLOOKUP(I91,'Liste Associés'!A:E,5,FALSE)","v":{"$error":"#N/A"}},{"$f":"IF(Tableau2[[#This Row],[Nature Opération]]=\"Apport\",1,-1)","v":-1}]
[null,null,null,null,null,null,null,null,null,{"$f":"VLOOKUP(I92,'Liste Associés'!A:E,5,FALSE)","v":{"$error":"#N/A"}},{"$f":"IF(Tableau2[[#This Row],[Nature Opération]]=\"Apport\",1,-1)","v":-1}]
[null,null,null,null,null,null,null,null,null,{"$f":"VLOOKUP(I93,'Liste Associés'!A:E,5,FALSE)","v":{"$error":"#N/A"}},{"$f":"IF(Tableau2[[#This Row],[Nature Opération]]=\"Apport\",1,-1)","v":-1}]
[null,null,null,null,null,null,null,null,null,{"$f":"VLOOKUP(I94,'Liste Associés'!A:E,5,FALSE)","v":{"$error":"#N/A"}},{"$f":"IF(Tableau2[[#This Row],[Nature Opération]]=\"Apport\",1,-1)","v":-1}]
[null,null,null,null,null,null,null,null,null,{"$f":"VLOOKUP(I95,'Liste Associés'!A:E,5,FALSE)","v":{"$error":"#N/A"}},{"$f":"IF(Tableau2[[#This Row],[Nature Opération]]=\"Apport\",1,-1)","v":-1}]
[null,null,null,null,null,null,null,null,null,{"$f":"VLOOKUP(I96,'Liste Associés'!A:E,5,FALSE)","v":{"$error":"#N/A"}},{"$f":"IF(Tableau2[[#This Row],[Nature Opération]]=\"Apport\",1,-1)","v":-1}]
[null,null,null,null,null,null,null,null,null,{"$f":"VLOOKUP(I97,'Liste Associés'!A:E,5,FALSE)","v":{"$error":"#N/A"}},{"$f":"IF(Tableau2[[#This Row],[Nature Opération]]=\"Apport\",1,-1)","v":-1}]
[null,null,null,null,null,null,null,null,null,{"$f":"VLOOKUP(I98,'Liste Associés'!A:E,5,FALSE)","v":{"$error":"#N/A"}},{"$f":"IF(Tableau2[[#This Row],[Nature Opération]]=\"Apport\",1,-1)","v":-1}]
[null,null,null,null,null,null,null,null,null,{"$f":"VLOOKUP(I99,'Liste Associés'!A:E,5,FALSE)","v":{"$error":"#N/A"}},{"$f":"IF(Tableau2[[#This Row],[Nature Opération]]=\"Apport\",1,-1)","v":-1}]
[null,null,null,null,null,null,null,null,null,{"$f":"VLOOKUP(I100,'Liste Associés'!A:E,5,FALSE)","v":{"$error":"#N/A"}},{"$f":"IF(Tableau2[[#This Row],[Nature Opération]]=\"Apport\",1,-1)","v":-1}]
[null,null,null,null,null,null,null,null,null,{"$f":"VLOOKUP(I101,'Liste Associés'!A:E,5,FALSE)","v":{"$error":"#N/A"}},{"$f":"IF(Tableau2[[#This Row],[Nature Opération]]=\"Apport\",1,-1)","v":-1}]
[null,null,null,null,null,null,null,null,null,{"$f":"VLOOKUP(I102,'Liste Associés'!A:E,5,FALSE)","v":{"$error":"#N/A"}},{"$f":"IF(Tableau2[[#This Row],[Nature Opération]]=\"Apport\",1,-1)","v":-1}]
[null,null,null,null,null,null,null,null,null,{"$f":"VLOOKUP(I103,'Liste Associés'!A:E,5,FALSE)","v":{"$error":"#N/A"}},{"$f":"IF(Tableau2[[#This Row],[Nature Opération]]=\"Apport\",1,-1)","v":-1}]
[null,null,null,null,null,null,null,null,null,{"$f":"VLOOKUP(I104,'Liste Associés'!A:E,5,FALSE)","v":{"$error":"#N/A"}},{"$f":"IF(Tableau2[[#This Row],[Nature Opération]]=\"Apport\",1,-1)","v":-1}]
[null,null,null,null,null,null,null,null,null,{"$f":"VLOOKUP(I105,'Liste Associés'!A:E,5,FALSE)","v":{"$error":"#N/A"}},{"$f":"IF(Tableau2[[#This Row],[Nature Opération]]=\"Apport\",1,-1)","v":-1}]
[null,null,null,null,null,null,null,null,null,{"$f":"VLOOKUP(I106,'Liste Associés'!A:E,5,FALSE)","v":{"$error":"#N/A"}},{"$f":"IF(Tableau2[[#This Row],[Nature Opération]]=\"Apport\",1,-1)","v":-1}]
[null,null,null,null,null,null,null,null,null,{"$f":"VLOOKUP(I107,'Liste Associés'!A:E,5,FALSE)","v":{"$error":"#N/A"}},{"$f":"IF(Tableau2[[#This Row],[Nature Opération]]=\"Apport\",1,-1)","v":-1}]
[null,null,null,null,null,null,null,null,null,{"$f":"VLOOKUP(I108,'Liste Associés'!A:E,5,FALSE)","v":{"$error":"#N/A"}},{"$f":"IF(Tableau2[[#This Row],[Nature Opération]]=\"Apport\",1,-1)","v":-1}]
[null,null,null,null,null,null,null,null,null,{"$f":"VLOOKUP(I109,'Liste Associés'!A:E,5,FALSE)","v":{"$error":"#N/A"}},{"$f":"IF(Tableau2[[#This Row],[Nature Opération]]=\"Apport\",1,-1)","v":-1}]
[null,null,null,null,null,null,null,null,null,{"$f":"VLOOKUP(I110,'Liste Associés'!A:E,5,FALSE)","v":{"$error":"#N/A"}},{"$f":"IF(Tableau2[[#This Row],[Nature Opération]]=\"Apport\",1,-1)","v":-1}]
[null,null,null,null,null,null,null,null,null,{"$f":"VLOOKUP(I111,'Liste Associés'!A:E,5,FALSE)","v":{"$error":"#N/A"}},{"$f":"IF(Tableau2[[#This Row],[Nature Opération]]=\"Apport\",1,-1)","v":-1}]
[null,null,null,null,null,null,null,null,null,{"$f":"VLOOKUP(I112,'Liste Associés'!A:E,5,FALSE)","v":{"$error":"#N/A"}},{"$f":"IF(Tableau2[[#This Row],[Nature Opération]]=\"Apport\",1,-1)","v":-1}]
[null,null,null,null,null,null,null,null,null,{"$f":"VLOOKUP(I113,'Liste Associés'!A:E,5,FALSE)","v":{"$error":"#N/A"}},{"$f":"IF(Tableau2[[#This Row],[Nature Opération]]=\"Apport\",1,-1)","v":-1}]
[null,null,null,null,null,null,null,null,null,{"$f":"VLOOKUP(I114,'Liste Associés'!A:E,5,FALSE)","v":{"$error":"#N/A"}},{"$f":"IF(Tableau2[[#This Row],[Nature Opération]]=\"Apport\",1,-1)","v":-1}]
[null,null,null,null,null,null,null,null,null,{"$f":"VLOOKUP(I115,'Liste Associés'!A:E,5,FALSE)","v":{"$error":"#N/A"}},{"$f":"IF(Tableau2[[#This Row],[Nature Opération]]=\"Apport\",1,-1)","v":-1}]
[null,null,null,null,null,null,null,null,null,{"$f":"VLOOKUP(I116,'Liste Associés'!A:E,5,FALSE)","v":{"$error":"#N/A"}},{"$f":"IF(Tableau2[[#This Row],[Nature Opération]]=\"Apport\",1,-1)","v":-1}]
[null,null,null,null,null,null,null,null,null,{"$f":"VLOOKUP(I117,'Liste Associés'!A:E,5,FALSE)","v":{"$error":"#N/A"}},{"$f":"IF(Tableau2[[#This Row],[Nature Opération]]=\"Apport\",1,-1)","v":-1}]
[null,null,null,null,null,null,null,null,null,{"$f":"VLOOKUP(I118,'Liste Associés'!A:E,5,FALSE)","v":{"$error":"#N/A"}},{"$f":"IF(Tableau2[[#This Row],[Nature Opération]]=\"Apport\",1,-1)","v":-1}]
[null,null,null,null,null,null,null,null,null,{"$f":"VLOOKUP(I119,'Liste Associés'!A:E,5,FALSE)","v":{"$error":"#N/A"}},{"$f":"IF(Tableau2[[#This Row],[Nature Opération]]=\"Apport\",1,-1)","v":-1}]
[null,null,null,null,null,null,null,null,null,{"$f":"VLOOKUP(I120,'Liste Associés'!A:E,5,FALSE)","v":{"$error":"#N/A"}},{"$f":"IF(Tableau2[[#This Row],[Nature Opération]]=\"Apport\",1,-1)","v":-1}]
[null,null,null,null,null,null,null,null,null,{"$f":"VLOOKUP(I121,'Liste Associés'!A:E,5,FALSE)","v":{"$error":"#N/A"}},{"$f":"IF(Tableau2[[#This Row],[Nature Opération]]=\"Apport\",1,-1)","v":-1}]
[null,null,null,null,null,null,null,null,null,{"$f":"VLOOKUP(I122,'Liste Associés'!A:E,5,FALSE)","v":{"$error":"#N/A"}},{"$f":"IF(Tableau2[[#This Row],[Nature Opération]]=\"Apport\",1,-1)","v":-1}]
[null,null,null,null,null,null,null,null,null,{"$f":"VLOOKUP(I123,'Liste Associés'!A:E,5,FALSE)","v":{"$error":"#N/A"}},{"$f":"IF(Tableau2[[#This Row],[Nature Opération]]=\"Apport\",1,-1)","v":-1}]
[null,null,null,null,null,null,null,null,null,{"$f":"VLOOKUP(I124,'Liste Associés'!A:E,5,FALSE)","v":{"$error":"#N/A"}},{"$f":"IF(Tableau2[[#This Row],[Nature Opération]]=\"Apport\",1,-1)","v":-1}]
[null,null,null,null,null,null,null,null,null,{"$f":"VLOOKUP(I125,'Liste Associés'!A:E,5,FALSE)","v":{"$error":"#N/A"}},{"$f":"IF(Tableau2[[#This Row],[Nature Opération]]=\"Apport\",1,-1)","v":-1}]
[null,null,null,null,null,null,null,null,null,{"$f":"VLOOKUP(I126,'Liste Associés'!A:E,5,FALSE)","v":{"$error":"#N/A"}},{"$f":"IF(Tableau2[[#This Row],[Nature Opération]]=\"Apport\",1,-1)","v":-1}]
[null,null,null,null,null,null,null,null,null,{"$f":"VLOOKUP(I127,'Liste Associés'!A:E,5,FALSE)","v":{"$error":"#N/A"}},{"$f":"IF(Tableau2[[#This Row],[Nature Opération]]=\"Apport\",1,-1)","v":-1}]
[null,null,null,null,null,null,null,null,null,{"$f":"VLOOKUP(I128,'Liste Associés'!A:E,5,FALSE)","v":{"$error":"#N/A"}},{"$f":"IF(Tableau2[[#This Row],[Nature Opération]]=\"Apport\",1,-1)","v":-1}]
[null,null,null,null,null,null,null,null,null,{"$f":"VLOOKUP(I129,'Liste Associés'!A:E,5,FALSE)","v":{"$error":"#N/A"}},{"$f":"IF(Tableau2[[#This Row],[Nature Opération]]=\"Apport\",1,-1)","v":-1}]
[null,null,null,null,null,null,null,null,null,{"$f":"VLOOKUP(I130,'Liste Associés'!A:E,5,FALSE)","v":{"$error":"#N/A"}},{"$f":"IF(Tableau2[[#This Row],[Nature Opération]]=\"Apport\",1,-1)","v":-1}]
[null,null,null,null,null,null,null,null,null,{"$f":"VLOOKUP(I131,'Liste Associés'!A:E,5,FALSE)","v":{"$error":"#N/A"}},{"$f":"IF(Tableau2[[#This Row],[Nature Opération]]=\"Apport\",1,-1)","v":-1}]
[null,null,null,null,null,null,null,null,null,{"$f":"VLOOKUP(I132,'Liste Associés'!A:E,5,FALSE)","v":{"$error":"#N/A"}},{"$f":"IF(Tableau2[[#This Row],[Nature Opération]]=\"Apport\",1,-1)","v":-1}]
[null,null,null,null,null,null,null,null,null,{"$f":"VLOOKUP(I133,'Liste Associés'!A:E,5,FALSE)","v":{"$error":"#N/A"}},{"$f":"IF(Tableau2[[#This Row],[Nature Opération]]=\"Apport\",1,-1)","v":-1}]
[null,null,null,null,null,null,null,null,null,{"$f":"VLOOKUP(I134,'Liste Associés'!A:E,5,FALSE)","v":{"$error":"#N/A"}},{"$f":"IF(Tableau2[[#This Row],[Nature Opération]]=\"Apport\",1,-1)","v":-1}]
[null,null,null,null,null,null,null,null,null,{"$f":"VLOOKUP(I135,'Liste Associés'!A:E,5,FALSE)","v":{"$error":"#N/A"}},{"$f":"IF(Tableau2[[#This Row],[Nature Opération]]=\"Apport\",1,-1)","v":-1}]
[null,null,null,null,null,null,null,null,null,{"$f":"VLOOKUP(I136,'Liste Associés'!A:E,5,FALSE)","v":{"$error":"#N/A"}},{"$f":"IF(Tableau2[[#This Row],[Nature Opération]]=\"Apport\",1,-1)","v":-1}]
[null,null,null,null,null,null,null,null,null,{"$f":"VLOOKUP(I137,'Liste Associés'!A:E,5,FALSE)","v":{"$error":"#N/A"}},{"$f":"IF(Tableau2[[#This Row],[Nature Opération]]=\"Apport\",1,-1)","v":-1}]
[null,null,null,null,null,null,null,null,null,{"$f":"VLOOKUP(I138,'Liste Associés'!A:E,5,FALSE)","v":{"$error":"#N/A"}},{"$f":"IF(Tableau2[[#This Row],[Nature Opération]]=\"Apport\",1,-1)","v":-1}]
[null,null,null,null,null,null,null,null,null,{"$f":"VLOOKUP(I139,'Liste Associés'!A:E,5,FALSE)","v":{"$error":"#N/A"}},{"$f":"IF(Tableau2[[#This Row],[Nature Opération]]=\"Apport\",1,-1)","v":-1}]
[null,null,null,null,null,null,null,null,null,{"$f":"VLOOKUP(I140,'Liste Associés'!A:E,5,FALSE)","v":{"$error":"#N/A"}},{"$f":"IF(Tableau2[[#This Row],[Nature Opération]]=\"Apport\",1,-1)","v":-1}]
[null,null,null,null,null,null,null,null,null,{"$f":"VLOOKUP(I141,'Liste Associés'!A:E,5,FALSE)","v":{"$error":"#N/A"}},{"$f":"IF(Tableau2[[#This Row],[Nature Opération]]=\"Apport\",1,-1)","v":-1}]
[null,null,null,null,null,null,null,null,null,{"$f":"VLOOKUP(I142,'Liste Associés'!A:E,5,FALSE)","v":{"$error":"#N/A"}},{"$f":"IF(Tableau2[[#This Row],[Nature Opération]]=\"Apport\",1,-1)","v":-1}]
[null,null,null,null,null,null,null,null,null,{"$f":"VLOOKUP(I143,'Liste Associés'!A:E,5,FALSE)","v":{"$error":"#N/A"}},{"$f":"IF(Tableau2[[#This Row],[Nature Opération]]=\"Apport\",1,-1)","v":-1}]
[null,null,null,null,null,null,null,null,null,{"$f":"VLOOKUP(I144,'Liste Associés'!A:E,5,FALSE)","v":{"$error":"#N/A"}},{"$f":"IF(Tableau2[[#This Row],[Nature Opération]]=\"Apport\",1,-1)","v":-1}]
[null,null,null,null,null,null,null,null,null,{"$f":"VLOOKUP(I145,'Liste Associés'!A:E,5,FALSE)","v":{"$error":"#N/A"}},{"$f":"IF(Tableau2[[#This Row],[Nature Opération]]=\"Apport\",1,-1)","v":-1}]
[null,null,null,null,null,null,null,null,null,{"$f":"VLOOKUP(I146,'Liste Associés'!A:E,5,FALSE)","v":{"$error":"#N/A"}},{"$f":"IF(Tableau2[[#This Row],[Nature Opération]]=\"Apport\",1,-1)","v":-1}]
[null,null,null,null,null,null,null,null,null,{"$f":"VLOOKUP(I147,'Liste Associés'!A:E,5,FALSE)","v":{"$error":"#N/A"}},{"$f":"IF(Tableau2[[#This Row],[Nature Opération]]=\"Apport\",1,-1)","v":-1}]
[null,null,null,null,null,null,null,null,null,{"$f":"VLOOKUP(I148,'Liste Associés'!A:E,5,FALSE)","v":{"$error":"#N/A"}},{"$f":"IF(Tableau2[[#This Row],[Nature Opération]]=\"Apport\",1,-1)","v":-1}]
[null,null,null,null,null,null,null,null,null,{"$f":"VLOOKUP(I149,'Liste Associés'!A:E,5,FALSE)","v":{"$error":"#N/A"}},{"$f":"IF(Tableau2[[#This Row],[Nature Opération]]=\"Apport\",1,-1)","v":-1}]
[null,null,null,null,null,null,null,null,null,{"$f":"VLOOKUP(I150,'Liste Associés'!A:E,5,FALSE)","v":{"$error":"#N/A"}},{"$f":"IF(Tableau2[[#This Row],[Nature Opération]]=\"Apport\",1,-1)","v":-1}]
[null,null,null,null,null,null,null,null,null,{"$f":"VLOOKUP(I151,'Liste Associés'!A:E,5,FALSE)","v":{"$error":"#N/A"}},{"$f":"IF(Tableau2[[#This Row],[Nature Opération]]=\"Apport\",1,-1)","v":-1}]
[null,null,null,null,null,null,null,null,null,{"$f":"VLOOKUP(I152,'Liste Associés'!A:E,5,FALSE)","v":{"$error":"#N/A"}},{"$f":"IF(Tableau2[[#This Row],[Nature Opération]]=\"Apport\",1,-1)","v":-1}]
[null,null,null,null,null,null,null,null,null,{"$f":"VLOOKUP(I153,'Liste Associés'!A:E,5,FALSE)","v":{"$error":"#N/A"}},{"$f":"IF(Tableau2[[#This Row],[Nature Opération]]=\"Apport\",1,-1)","v":-1}]
[null,null,null,null,null,null,null,null,null,{"$f":"VLOOKUP(I154,'Liste Associés'!A:E,5,FALSE)","v":{"$error":"#N/A"}},{"$f":"IF(Tableau2[[#This Row],[Nature Opération]]=\"Apport\",1,-1)","v":-1}]
[null,null,null,null,null,null,null,null,null,{"$f":"VLOOKUP(I155,'Liste Associés'!A:E,5,FALSE)","v":{"$error":"#N/A"}},{"$f":"IF(Tableau2[[#This Row],[Nature Opération]]=\"Apport\",1,-1)","v":-1}]
[null,null,null,null,null,null,null,null,null,{"$f":"VLOOKUP(I156,'Liste Associés'!A:E,5,FALSE)","v":{"$error":"#N/A"}},{"$f":"IF(Tableau2[[#This Row],[Nature Opération]]=\"Apport\",1,-1)","v":-1}]
[null,null,null,null,null,null,null,null,null,{"$f":"VLOOKUP(I157,'Liste Associés'!A:E,5,FALSE)","v":{"$error":"#N/A"}},{"$f":"IF(Tableau2[[#This Row],[Nature Opération]]=\"Apport\",1,-1)","v":-1}]
[null,null,null,null,null,null,null,null,null,{"$f":"VLOOKUP(I158,'Liste Associés'!A:E,5,FALSE)","v":{"$error":"#N/A"}},{"$f":"IF(Tableau2[[#This Row],[Nature Opération]]=\"Apport\",1,-1)","v":-1}]
[null,null,null,null,null,null,null,null,null,{"$f":"VLOOKUP(I159,'Liste Associés'!A:E,5,FALSE)","v":{"$error":"#N/A"}},{"$f":"IF(Tableau2[[#This Row],[Nature Opération]]=\"Apport\",1,-1)","v":-1}]
[null,null,null,null,null,null,null,null,null,{"$f":"VLOOKUP(I160,'Liste Associés'!A:E,5,FALSE)","v":{"$error":"#N/A"}},{"$f":"IF(Tableau2[[#This Row],[Nature Opération]]=\"Apport\",1,-1)","v":-1}]
[null,null,null,null,null,null,null,null,null,{"$f":"VLOOKUP(I161,'Liste Associés'!A:E,5,FALSE)","v":{"$error":"#N/A"}},{"$f":"IF(Tableau2[[#This Row],[Nature Opération]]=\"Apport\",1,-1)","v":-1}]
[null,null,null,null,null,null,null,null,null,{"$f":"VLOOKUP(I162,'Liste Associés'!A:E,5,FALSE)","v":{"$error":"#N/A"}},{"$f":"IF(Tableau2[[#This Row],[Nature Opération]]=\"Apport\",1,-1)","v":-1}]
[null,null,null,null,null,null,null,null,null,{"$f":"VLOOKUP(I163,'Liste Associés'!A:E,5,FALSE)","v":{"$error":"#N/A"}},{"$f":"IF(Tableau2[[#This Row],[Nature Opération]]=\"Apport\",1,-1)","v":-1}]
[null,null,null,null,null,null,null,null,null,{"$f":"VLOOKUP(I164,'Liste Associés'!A:E,5,FALSE)","v":{"$error":"#N/A"}},{"$f":"IF(Tableau2[[#This Row],[Nature Opération]]=\"Apport\",1,-1)","v":-1}]
[null,null,null,null,null,null,null,null,null,{"$f":"VLOOKUP(I165,'Liste Associés'!A:E,5,FALSE)","v":{"$error":"#N/A"}},{"$f":"IF(Tableau2[[#This Row],[Nature Opération]]=\"Apport\",1,-1)","v":-1}]
[null,null,null,null,null,null,null,null,null,{"$f":"VLOOKUP(I166,'Liste Associés'!A:E,5,FALSE)","v":{"$error":"#N/A"}},{"$f":"IF(Tableau2[[#This Row],[Nature Opération]]=\"Apport\",1,-1)","v":-1}]
[null,null,null,null,null,null,null,null,null,{"$f":"VLOOKUP(I167,'Liste Associés'!A:E,5,FALSE)","v":{"$error":"#N/A"}},{"$f":"IF(Tableau2[[#This Row],[Nature Opération]]=\"Apport\",1,-1)","v":-1}]
[null,null,null,null,null,null,null,null,null,{"$f":"VLOOKUP(I168,'Liste Associés'!A:E,5,FALSE)","v":{"$error":"#N/A"}},{"$f":"IF(Tableau2[[#This Row],[Nature Opération]]=\"Apport\",1,-1)","v":-1}]
[null,null,null,null,null,null,null,null,null,{"$f":"VLOOKUP(I169,'Liste Associés'!A:E,5,FALSE)","v":{"$error":"#N/A"}},{"$f":"IF(Tableau2[[#This Row],[Nature Opération]]=\"Apport\",1,-1)","v":-1}]
[null,null,null,null,null,null,null,null,null,{"$f":"VLOOKUP(I170,'Liste Associés'!A:E,5,FALSE)","v":{"$error":"#N/A"}},{"$f":"IF(Tableau2[[#This Row],[Nature Opération]]=\"Apport\",1,-1)","v":-1}]
[null,null,null,null,null,null,null,null,null,{"$f":"VLOOKUP(I171,'Liste Associés'!A:E,5,FALSE)","v":{"$error":"#N/A"}},{"$f":"IF(Tableau2[[#This Row],[Nature Opération]]=\"Apport\",1,-1)","v":-1}]
[null,null,null,null,null,null,null,null,null,{"$f":"VLOOKUP(I172,'Liste Associés'!A:E,5,FALSE)","v":{"$error":"#N/A"}},{"$f":"IF(Tableau2[[#This Row],[Nature Opération]]=\"Apport\",1,-1)","v":-1}]
[null,null,null,null,null,null,null,null,null,{"$f":"VLOOKUP(I173,'Liste Associés'!A:E,5,FALSE)","v":{"$error":"#N/A"}},{"$f":"IF(Tableau2[[#This Row],[Nature Opération]]=\"Apport\",1,-1)","v":-1}]
[null,null,null,null,null,null,null,null,null,{"$f":"VLOOKUP(I174,'Liste Associés'!A:E,5,FALSE)","v":{"$error":"#N/A"}},{"$f":"IF(Tableau2[[#This Row],[Nature Opération]]=\"Apport\",1,-1)","v":-1}]
[null,null,null,null,null,null,null,null,null,{"$f":"VLOOKUP(I175,'Liste Associés'!A:E,5,FALSE)","v":{"$error":"#N/A"}},{"$f":"IF(Tableau2[[#This Row],[Nature Opération]]=\"Apport\",1,-1)","v":-1}]
[null,null,null,null,null,null,null,null,null,{"$f":"VLOOKUP(I176,'Liste Associés'!A:E,5,FALSE)","v":{"$error":"#N/A"}},{"$f":"IF(Tableau2[[#This Row],[Nature Opération]]=\"Apport\",1,-1)","v":-1}]
[null,null,null,null,null,null,null,null,null,{"$f":"VLOOKUP(I177,'Liste Associés'!A:E,5,FALSE)","v":{"$error":"#N/A"}},{"$f":"IF(Tableau2[[#This Row],[Nature Opération]]=\"Apport\",1,-1)","v":-1}]
[null,null,null,null,null,null,null,null,null,{"$f":"VLOOKUP(I178,'Liste Associés'!A:E,5,FALSE)","v":{"$error":"#N/A"}},{"$f":"IF(Tableau2[[#This Row],[Nature Opération]]=\"Apport\",1,-1)","v":-1}]
[null,null,null,null,null,null,null,null,null,{"$f":"VLOOKUP(I179,'Liste Associés'!A:E,5,FALSE)","v":{"$error":"#N/A"}},{"$f":"IF(Tableau2[[#This Row],[Nature Opération]]=\"Apport\",1,-1)","v":-1}]
[null,null,null,null,null,null,null,null,null,{"$f":"VLOOKUP(I180,'Liste Associés'!A:E,5,FALSE)","v":{"$error":"#N/A"}},{"$f":"IF(Tableau2[[#This Row],[Nature Opération]]=\"Apport\",1,-1)","v":-1}]
[null,null,null,null,null,null,null,null,null,{"$f":"VLOOKUP(I181,'Liste Associés'!A:E,5,FALSE)","v":{"$error":"#N/A"}},{"$f":"IF(Tableau2[[#This Row],[Nature Opération]]=\"Apport\",1,-1)","v":-1}]
[null,null,null,null,null,null,null,null,null,{"$f":"VLOOKUP(I182,'Liste Associés'!A:E,5,FALSE)","v":{"$error":"#N/A"}},{"$f":"IF(Tableau2[[#This Row],[Nature Opération]]=\"Apport\",1,-1)","v":-1}]
[null,null,null,null,null,null,null,null,null,{"$f":"VLOOKUP(I183,'Liste Associés'!A:E,5,FALSE)","v":{"$error":"#N/A"}},{"$f":"IF(Tableau2[[#This Row],[Nature Opération]]=\"Apport\",1,-1)","v":-1}]
[null,null,null,null,null,null,null,null,null,{"$f":"VLOOKUP(I184,'Liste Associés'!A:E,5,FALSE)","v":{"$error":"#N/A"}},{"$f":"IF(Tableau2[[#This Row],[Nature Opération]]=\"Apport\",1,-1)","v":-1}]
[null,null,null,null,null,null,null,null,null,{"$f":"VLOOKUP(I185,'Liste Associés'!A:E,5,FALSE)","v":{"$error":"#N/A"}},{"$f":"IF(Tableau2[[#This Row],[Nature Opération]]=\"Apport\",1,-1)","v":-1}]
[null,null,null,null,null,null,null,null,null,{"$f":"VLOOKUP(I186,'Liste Associés'!A:E,5,FALSE)","v":{"$error":"#N/A"}},{"$f":"IF(Tableau2[[#This Row],[Nature Opération]]=\"Apport\",1,-1)","v":-1}]
[null,null,null,null,null,null,null,null,null,{"$f":"VLOOKUP(I187,'Liste Associés'!A:E,5,FALSE)","v":{"$error":"#N/A"}},{"$f":"IF(Tableau2[[#This Row],[Nature Opération]]=\"Apport\",1,-1)","v":-1}]
[null,null,null,null,null,null,null,null,null,{"$f":"VLOOKUP(I188,'Liste Associés'!A:E,5,FALSE)","v":{"$error":"#N/A"}},{"$f":"IF(Tableau2[[#This Row],[Nature Opération]]=\"Apport\",1,-1)","v":-1}]
[null,null,null,null,null,null,null,null,null,{"$f":"VLOOKUP(I189,'Liste Associés'!A:E,5,FALSE)","v":{"$error":"#N/A"}},{"$f":"IF(Tableau2[[#This Row],[Nature Opération]]=\"Apport\",1,-1)","v":-1}]
[null,null,null,null,null,null,null,null,null,{"$f":"VLOOKUP(I190,'Liste Associés'!A:E,5,FALSE)","v":{"$error":"#N/A"}},{"$f":"IF(Tableau2[[#This Row],[Nature Opération]]=\"Apport\",1,-1)","v":-1}]
[null,null,null,null,null,null,null,null,null,{"$f":"VLOOKUP(I191,'Liste Associés'!A:E,5,FALSE)","v":{"$error":"#N/A"}},{"$f":"IF(Tableau2[[#This Row],[Nature Opération]]=\"Apport\",1,-1)","v":-1}]
[null,null,null,null,null,null,null,null,null,{"$f":"VLOOKUP(I192,'Liste Associés'!A:E,5,FALSE)","v":{"$error":"#N/A"}},{"$f":"IF(Tableau2[[#This Row],[Nature Opération]]=\"Apport\",1,-1)","v":-1}]
[null,null,null,null,null,null,null,null,null,{"$f":"VLOOKUP(I193,'Liste Associés'!A:E,5,FALSE)","v":{"$error":"#N/A"}},{"$f":"IF(Tableau2[[#This Row],[Nature Opération]]=\"Apport\",1,-1)","v":-1}]
[null,null,null,null,null,null,null,null,null,{"$f":"VLOOKUP(I194,'Liste Associés'!A:E,5,FALSE)","v":{"$error":"#N/A"}},{"$f":"IF(Tableau2[[#This Row],[Nature Opération]]=\"Apport\",1,-1)","v":-1}]
[null,null,null,null,null,null,null,null,null,{"$f":"VLOOKUP(I195,'Liste Associés'!A:E,5,FALSE)","v":{"$error":"#N/A"}},{"$f":"IF(Tableau2[[#This Row],[Nature Opération]]=\"Apport\",1,-1)","v":-1}]
[null,null,null,null,null,null,null,null,null,{"$f":"VLOOKUP(I196,'Liste Associés'!A:E,5,FALSE)","v":{"$error":"#N/A"}},{"$f":"IF(Tableau2[[#This Row],[Nature Opération]]=\"Apport\",1,-1)","v":-1}]
[null,null,null,null,null,null,null,null,null,{"$f":"VLOOKUP(I197,'Liste Associés'!A:E,5,FALSE)","v":{"$error":"#N/A"}},{"$f":"IF(Tableau2[[#This Row],[Nature Opération]]=\"Apport\",1,-1)","v":-1}]
[null,null,null,null,null,null,null,null,null,{"$f":"VLOOKUP(I198,'Liste Associés'!A:E,5,FALSE)","v":{"$error":"#N/A"}},{"$f":"IF(Tableau2[[#This Row],[Nature Opération]]=\"Apport\",1,-1)","v":-1}]
[null,null,null,null,null,null,null,null,null,{"$f":"VLOOKUP(I199,'Liste Associés'!A:E,5,FALSE)","v":{"$error":"#N/A"}},{"$f":"IF(Tableau2[[#This Row],[Nature Opération]]=\"Apport\",1,-1)","v":-1}]
[null,null,null,null,null,null,null,null,null,{"$f":"VLOOKUP(I200,'Liste Associés'!A:E,5,FALSE)","v":{"$error":"#N/A"}},{"$f":"IF(Tableau2[[#This Row],[Nature Opération]]=\"Apport\",1,-1)","v":-1}]
[null,null,null,null,null,null,null,null,null,{"$f":"VLOOKUP(I201,'Liste Associés'!A:E,5,FALSE)","v":{"$error":"#N/A"}},{"$f":"IF(Tableau2[[#This Row],[Nature Opération]]=\"Apport\",1,-1)","v":-1}]
[null,null,null,null,null,null,null,null,null,{"$f":"VLOOKUP(I202,'Liste Associés'!A:E,5,FALSE)","v":{"$error":"#N/A"}},{"$f":"IF(Tableau2[[#This Row],[Nature Opération]]=\"Apport\",1,-1)","v":-1}]
[null,null,null,null,null,null,null,null,null,{"$f":"VLOOKUP(I203,'Liste Associés'!A:E,5,FALSE)","v":{"$error":"#N/A"}},{"$f":"IF(Tableau2[[#This Row],[Nature Opération]]=\"Apport\",1,-1)","v":-1}]
[null,null,null,null,null,null,null,null,null,{"$f":"VLOOKUP(I204,'Liste Associés'!A:E,5,FALSE)","v":{"$error":"#N/A"}},{"$f":"IF(Tableau2[[#This Row],[Nature Opération]]=\"Apport\",1,-1)","v":-1}]
[null,null,null,null,null,null,null,null,null,{"$f":"VLOOKUP(I205,'Liste Associés'!A:E,5,FALSE)","v":{"$error":"#N/A"}},{"$f":"IF(Tableau2[[#This Row],[Nature Opération]]=\"Apport\",1,-1)","v":-1}]
[null,null,null,null,null,null,null,null,null,{"$f":"VLOOKUP(I206,'Liste Associés'!A:E,5,FALSE)","v":{"$error":"#N/A"}},{"$f":"IF(Tableau2[[#This Row],[Nature Opération]]=\"Apport\",1,-1)","v":-1}]
[null,null,null,null,null,null,null,null,null,{"$f":"VLOOKUP(I207,'Liste Associés'!A:E,5,FALSE)","v":{"$error":"#N/A"}},{"$f":"IF(Tableau2[[#This Row],[Nature Opération]]=\"Apport\",1,-1)","v":-1}]
[null,null,null,null,null,null,null,null,null,{"$f":"VLOOKUP(I208,'Liste Associés'!A:E,5,FALSE)","v":{"$error":"#N/A"}},{"$f":"IF(Tableau2[[#This Row],[Nature Opération]]=\"Apport\",1,-1)","v":-1}]
[null,null,null,null,null,null,null,null,null,{"$f":"VLOOKUP(I209,'Liste Associés'!A:E,5,FALSE)","v":{"$error":"#N/A"}},{"$f":"IF(Tableau2[[#This Row],[Nature Opération]]=\"Apport\",1,-1)","v":-1}]
[null,null,null,null,null,null,null,null,null,{"$f":"VLOOKUP(I210,'Liste Associés'!A:E,5,FALSE)","v":{"$error":"#N/A"}},{"$f":"IF(Tableau2[[#This Row],[Nature Opération]]=\"Apport\",1,-1)","v":-1}]
[null,null,null,null,null,null,null,null,null,{"$f":"VLOOKUP(I211,'Liste Associés'!A:E,5,FALSE)","v":{"$error":"#N/A"}},{"$f":"IF(Tableau2[[#This Row],[Nature Opération]]=\"Apport\",1,-1)","v":-1}]
[null,null,null,null,null,null,null,null,null,{"$f":"VLOOKUP(I212,'Liste Associés'!A:E,5,FALSE)","v":{"$error":"#N/A"}},{"$f":"IF(Tableau2[[#This Row],[Nature Opération]]=\"Apport\",1,-1)","v":-1}]
[null,null,null,null,null,null,null,null,null,{"$f":"VLOOKUP(I213,'Liste Associés'!A:E,5,FALSE)","v":{"$error":"#N/A"}},{"$f":"IF(Tableau2[[#This Row],[Nature Opération]]=\"Apport\",1,-1)","v":-1}]
[null,null,null,null,null,null,null,null,null,{"$f":"VLOOKUP(I214,'Liste Associés'!A:E,5,FALSE)","v":{"$error":"#N/A"}},{"$f":"IF(Tableau2[[#This Row],[Nature Opération]]=\"Apport\",1,-1)","v":-1}]
[null,null,null,null,null,null,null,null,null,{"$f":"VLOOKUP(I215,'Liste Associés'!A:E,5,FALSE)","v":{"$error":"#N/A"}},{"$f":"IF(Tableau2[[#This Row],[Nature Opération]]=\"Apport\",1,-1)","v":-1}]
[null,null,null,null,null,null,null,null,null,{"$f":"VLOOKUP(I216,'Liste Associés'!A:E,5,FALSE)","v":{"$error":"#N/A"}},{"$f":"IF(Tableau2[[#This Row],[Nature Opération]]=\"Apport\",1,-1)","v":-1}]
[null,null,null,null,null,null,null,null,null,{"$f":"VLOOKUP(I217,'Liste Associés'!A:E,5,FALSE)","v":{"$error":"#N/A"}},{"$f":"IF(Tableau2[[#This Row],[Nature Opération]]=\"Apport\",1,-1)","v":-1}]
[null,null,null,null,null,null,null,null,null,{"$f":"VLOOKUP(I218,'Liste Associés'!A:E,5,FALSE)","v":{"$error":"#N/A"}},{"$f":"IF(Tableau2[[#This Row],[Nature Opération]]=\"Apport\",1,-1)","v":-1}]
[null,null,null,null,null,null,null,null,null,{"$f":"VLOOKUP(I219,'Liste Associés'!A:E,5,FALSE)","v":{"$error":"#N/A"}},{"$f":"IF(Tableau2[[#This Row],[Nature Opération]]=\"Apport\",1,-1)","v":-1}]
[null,null,null,null,null,null,null,null,null,{"$f":"VLOOKUP(I220,'Liste Associés'!A:E,5,FALSE)","v":{"$error":"#N/A"}},{"$f":"IF(Tableau2[[#This Row],[Nature Opération]]=\"Apport\",1,-1)","v":-1}]
[null,null,null,null,null,null,null,null,null,{"$f":"VLOOKUP(I221,'Liste Associés'!A:E,5,FALSE)","v":{"$error":"#N/A"}},{"$f":"IF(Tableau2[[#This Row],[Nature Opération]]=\"Apport\",1,-1)","v":-1}]
[null,null,null,null,null,null,null,null,null,{"$f":"VLOOKUP(I222,'Liste Associés'!A:E,5,FALSE)","v":{"$error":"#N/A"}},{"$f":"IF(Tableau2[[#This Row],[Nature Opération]]=\"Apport\",1,-1)","v":-1}]
[null,null,null,null,null,null,null,null,null,{"$f":"VLOOKUP(I223,'Liste Associés'!A:E,5,FALSE)","v":{"$error":"#N/A"}},{"$f":"IF(Tableau2[[#This Row],[Nature Opération]]=\"Apport\",1,-1)","v":-1}]
[null,null,null,null,null,null,null,null,null,{"$f":"VLOOKUP(I224,'Liste Associés'!A:E,5,FALSE)","v":{"$error":"#N/A"}},{"$f":"IF(Tableau2[[#This Row],[Nature Opération]]=\"Apport\",1,-1)","v":-1}]
[null,null,null,null,null,null,null,null,null,{"$f":"VLOOKUP(I225,'Liste Associés'!A:E,5,FALSE)","v":{"$error":"#N/A"}},{"$f":"IF(Tableau2[[#This Row],[Nature Opération]]=\"Apport\",1,-1)","v":-1}]
[null,null,null,null,null,null,null,null,null,{"$f":"VLOOKUP(I226,'Liste Associés'!A:E,5,FALSE)","v":{"$error":"#N/A"}},{"$f":"IF(Tableau2[[#This Row],[Nature Opération]]=\"Apport\",1,-1)","v":-1}]
[null,null,null,null,null,null,null,null,null,{"$f":"VLOOKUP(I227,'Liste Associés'!A:E,5,FALSE)","v":{"$error":"#N/A"}},{"$f":"IF(Tableau2[[#This Row],[Nature Opération]]=\"Apport\",1,-1)","v":-1}]
[null,null,null,null,null,null,null,null,null,{"$f":"VLOOKUP(I228,'Liste Associés'!A:E,5,FALSE)","v":{"$error":"#N/A"}},{"$f":"IF(Tableau2[[#This Row],[Nature Opération]]=\"Apport\",1,-1)","v":-1}]
[null,null,null,null,null,null,null,null,null,{"$f":"VLOOKUP(I229,'Liste Associés'!A:E,5,FALSE)","v":{"$error":"#N/A"}},{"$f":"IF(Tableau2[[#This Row],[Nature Opération]]=\"Apport\",1,-1)","v":-1}]
[null,null,null,null,null,null,null,null,null,{"$f":"VLOOKUP(I230,'Liste Associés'!A:E,5,FALSE)","v":{"$error":"#N/A"}},{"$f":"IF(Tableau2[[#This Row],[Nature Opération]]=\"Apport\",1,-1)","v":-1}]
[null,null,null,null,null,null,null,null,null,{"$f":"VLOOKUP(I231,'Liste Associés'!A:E,5,FALSE)","v":{"$error":"#N/A"}},{"$f":"IF(Tableau2[[#This Row],[Nature Opération]]=\"Apport\",1,-1)","v":-1}]
[null,null,null,null,null,null,null,null,null,{"$f":"VLOOKUP(I232,'Liste Associés'!A:E,5,FALSE)","v":{"$error":"#N/A"}},{"$f":"IF(Tableau2[[#This Row],[Nature Opération]]=\"Apport\",1,-1)","v":-1}]
[null,null,null,null,null,null,null,null,null,{"$f":"VLOOKUP(I233,'Liste Associés'!A:E,5,FALSE)","v":{"$error":"#N/A"}},{"$f":"IF(Tableau2[[#This Row],[Nature Opération]]=\"Apport\",1,-1)","v":-1}]
[null,null,null,null,null,null,null,null,null,{"$f":"VLOOKUP(I234,'Liste Associés'!A:E,5,FALSE)","v":{"$error":"#N/A"}},{"$f":"IF(Tableau2[[#This Row],[Nature Opération]]=\"Apport\",1,-1)","v":-1}]
[null,null,null,null,null,null,null,null,null,{"$f":"VLOOKUP(I235,'Liste Associés'!A:E,5,FALSE)","v":{"$error":"#N/A"}},{"$f":"IF(Tableau2[[#This Row],[Nature Opération]]=\"Apport\",1,-1)","v":-1}]
[null,null,null,null,null,null,null,null,null,{"$f":"VLOOKUP(I236,'Liste Associés'!A:E,5,FALSE)","v":{"$error":"#N/A"}},{"$f":"IF(Tableau2[[#This Row],[Nature Opération]]=\"Apport\",1,-1)","v":-1}]
[null,null,null,null,null,null,null,null,null,{"$f":"VLOOKUP(I237,'Liste Associés'!A:E,5,FALSE)","v":{"$error":"#N/A"}},{"$f":"IF(Tableau2[[#This Row],[Nature Opération]]=\"Apport\",1,-1)","v":-1}]
[null,null,null,null,null,null,null,null,null,{"$f":"VLOOKUP(I238,'Liste Associés'!A:E,5,FALSE)","v":{"$error":"#N/A"}},{"$f":"IF(Tableau2[[#This Row],[Nature Opération]]=\"Apport\",1,-1)","v":-1}]
[null,null,null,null,null,null,null,null,null,{"$f":"VLOOKUP(I239,'Liste Associés'!A:E,5,FALSE)","v":{"$error":"#N/A"}},{"$f":"IF(Tableau2[[#This Row],[Nature Opération]]=\"Apport\",1,-1)","v":-1}]
[null,null,null,null,null,null,null,null,null,{"$f":"VLOOKUP(I240,'Liste Associés'!A:E,5,FALSE)","v":{"$error":"#N/A"}},{"$f":"IF(Tableau2[[#This Row],[Nature Opération]]=\"Apport\",1,-1)","v":-1}]
[null,null,null,null,null,null,null,null,null,{"$f":"VLOOKUP(I241,'Liste Associés'!A:E,5,FALSE)","v":{"$error":"#N/A"}},{"$f":"IF(Tableau2[[#This Row],[Nature Opération]]=\"Apport\",1,-1)","v":-1}]
[null,null,null,null,null,null,null,null,null,{"$f":"VLOOKUP(I242,'Liste Associés'!A:E,5,FALSE)","v":{"$error":"#N/A"}},{"$f":"IF(Tableau2[[#This Row],[Nature Opération]]=\"Apport\",1,-1)","v":-1}]
[null,null,null,null,null,null,null,null,null,{"$f":"VLOOKUP(I243,'Liste Associés'!A:E,5,FALSE)","v":{"$error":"#N/A"}},{"$f":"IF(Tableau2[[#This Row],[Nature Opération]]=\"Apport\",1,-1)","v":-1}]
[null,null,null,null,null,null,null,null,null,{"$f":"VLOOKUP(I244,'Liste Associés'!A:E,5,FALSE)","v":{"$error":"#N/A"}},{"$f":"IF(Tableau2[[#This Row],[Nature Opération]]=\"Apport\",1,-1)","v":-1}]
[null,null,null,null,null,null,null,null,null,{"$f":"VLOOKUP(I245,'Liste Associés'!A:E,5,FALSE)","v":{"$error":"#N/A"}},{"$f":"IF(Tableau2[[#This Row],[Nature Opération]]=\"Apport\",1,-1)","v":-1}]
[null,null,null,null,null,null,null,null,null,{"$f":"VLOOKUP(I246,'Liste Associés'!A:E,5,FALSE)","v":{"$error":"#N/A"}},{"$f":"IF(Tableau2[[#This Row],[Nature Opération]]=\"Apport\",1,-1)","v":-1}]
[null,null,null,null,null,null,null,null,null,{"$f":"VLOOKUP(I247,'Liste Associés'!A:E,5,FALSE)","v":{"$error":"#N/A"}},{"$f":"IF(Tableau2[[#This Row],[Nature Opération]]=\"Apport\",1,-1)","v":-1}]
[null,null,null,null,null,null,null,null,null,{"$f":"VLOOKUP(I248,'Liste Associés'!A:E,5,FALSE)","v":{"$error":"#N/A"}},{"$f":"IF(Tableau2[[#This Row],[Nature Opération]]=\"Apport\",1,-1)","v":-1}]
[null,null,null,null,null,null,null,null,null,{"$f":"VLOOKUP(I249,'Liste Associés'!A:E,5,FALSE)","v":{"$error":"#N/A"}},{"$f":"IF(Tableau2[[#This Row],[Nature Opération]]=\"Apport\",1,-1)","v":-1}]
[null,null,null,null,null,null,null,null,null,{"$f":"VLOOKUP(I250,'Liste Associés'!A:E,5,FALSE)","v":{"$error":"#N/A"}},{"$f":"IF(Tableau2[[#This Row],[Nature Opération]]=\"Apport\",1,-1)","v":-1}]
[null,null,null,null,null,null,null,null,null,{"$f":"VLOOKUP(I251,'Liste Associés'!A:E,5,FALSE)","v":{"$error":"#N/A"}},{"$f":"IF(Tableau2[[#This Row],[Nature Opération]]=\"Apport\",1,-1)","v":-1}]
[null,null,null,null,null,null,null,null,null,{"$f":"VLOOKUP(I252,'Liste Associés'!A:E,5,FALSE)","v":{"$error":"#N/A"}},{"$f":"IF(Tableau2[[#This Row],[Nature Opération]]=\"Apport\",1,-1)","v":-1}]
[null,null,null,null,null,null,null,null,null,{"$f":"VLOOKUP(I253,'Liste Associés'!A:E,5,FALSE)","v":{"$error":"#N/A"}},{"$f":"IF(Tableau2[[#This Row],[Nature Opération]]=\"Apport\",1,-1)","v":-1}]
[null,null,null,null,null,null,null,null,null,{"$f":"VLOOKUP(I254,'Liste Associés'!A:E,5,FALSE)","v":{"$error":"#N/A"}},{"$f":"IF(Tableau2[[#This Row],[Nature Opération]]=\"Apport\",1,-1)","v":-1}]
[null,null,null,null,null,null,null,null,null,{"$f":"VLOOKUP(I255,'Liste Associés'!A:E,5,FALSE)","v":{"$error":"#N/A"}},{"$f":"IF(Tableau2[[#This Row],[Nature Opération]]=\"Apport\",1,-1)","v":-1}]
[null,null,null,null,null,null,null,null,null,{"$f":"VLOOKUP(I256,'Liste Associés'!A:E,5,FALSE)","v":{"$error":"#N/A"}},{"$f":"IF(Tableau2[[#This Row],[Nature Opération]]=\"Apport\",1,-1)","v":-1}]
[null,null,null,null,null,null,null,null,null,{"$f":"VLOOKUP(I257,'Liste Associés'!A:E,5,FALSE)","v":{"$error":"#N/A"}},{"$f":"IF(Tableau2[[#This Row],[Nature Opération]]=\"Apport\",1,-1)","v":-1}]
[null,null,null,null,null,null,null,null,null,{"$f":"VLOOKUP(I258,'Liste Associés'!A:E,5,FALSE)","v":{"$error":"#N/A"}},{"$f":"IF(Tableau2[[#This Row],[Nature Opération]]=\"Apport\",1,-1)","v":-1}]
[null,null,null,null,null,null,null,null,null,{"$f":"VLOOKUP(I259,'Liste Associés'!A:E,5,FALSE)","v":{"$error":"#N/A"}},{"$f":"IF(Tableau2[[#This Row],[Nature Opération]]=\"Apport\",1,-1)","v":-1}]
[null,null,null,null,null,null,null,null,null,{"$f":"VLOOKUP(I260,'Liste Associés'!A:E,5,FALSE)","v":{"$error":"#N/A"}},{"$f":"IF(Tableau2[[#This Row],[Nature Opération]]=\"Apport\",1,-1)","v":-1}]
[null,null,null,null,null,null,null,null,null,{"$f":"VLOOKUP(I261,'Liste Associés'!A:E,5,FALSE)","v":{"$error":"#N/A"}},{"$f":"IF(Tableau2[[#This Row],[Nature Opération]]=\"Apport\",1,-1)","v":-1}]
[null,null,null,null,null,null,null,null,null,{"$f":"VLOOKUP(I262,'Liste Associés'!A:E,5,FALSE)","v":{"$error":"#N/A"}},{"$f":"IF(Tableau2[[#This Row],[Nature Opération]]=\"Apport\",1,-1)","v":-1}]
[null,null,null,null,null,null,null,null,null,{"$f":"VLOOKUP(I263,'Liste Associés'!A:E,5,FALSE)","v":{"$error":"#N/A"}},{"$f":"IF(Tableau2[[#This Row],[Nature Opération]]=\"Apport\",1,-1)","v":-1}]
[null,null,null,null,null,null,null,null,null,{"$f":"VLOOKUP(I264,'Liste Associés'!A:E,5,FALSE)","v":{"$error":"#N/A"}},{"$f":"IF(Tableau2[[#This Row],[Nature Opération]]=\"Apport\",1,-1)","v":-1}]
[null,null,null,null,null,null,null,null,null,{"$f":"VLOOKUP(I265,'Liste Associés'!A:E,5,FALSE)","v":{"$error":"#N/A"}},{"$f":"IF(Tableau2[[#This Row],[Nature Opération]]=\"Apport\",1,-1)","v":-1}]
[null,null,null,null,null,null,null,null,null,{"$f":"VLOOKUP(I266,'Liste Associés'!A:E,5,FALSE)","v":{"$error":"#N/A"}},{"$f":"IF(Tableau2[[#This Row],[Nature Opération]]=\"Apport\",1,-1)","v":-1}]
[null,null,null,null,null,null,null,null,null,{"$f":"VLOOKUP(I267,'Liste Associés'!A:E,5,FALSE)","v":{"$error":"#N/A"}},{"$f":"IF(Tableau2[[#This Row],[Nature Opération]]=\"Apport\",1,-1)","v":-1}]
[null,null,null,null,null,null,null,null,null,{"$f":"VLOOKUP(I268,'Liste Associés'!A:E,5,FALSE)","v":{"$error":"#N/A"}},{"$f":"IF(Tableau2[[#This Row],[Nature Opération]]=\"Apport\",1,-1)","v":-1}]
[null,null,null,null,null,null,null,null,null,{"$f":"VLOOKUP(I269,'Liste Associés'!A:E,5,FALSE)","v":{"$error":"#N/A"}},{"$f":"IF(Tableau2[[#This Row],[Nature Opération]]=\"Apport\",1,-1)","v":-1}]
[null,null,null,null,null,null,null,null,null,{"$f":"VLOOKUP(I270,'Liste Associés'!A:E,5,FALSE)","v":{"$error":"#N/A"}},{"$f":"IF(Tableau2[[#This Row],[Nature Opération]]=\"Apport\",1,-1)","v":-1}]
[null,null,null,null,null,null,null,null,null,{"$f":"VLOOKUP(I271,'Liste Associés'!A:E,5,FALSE)","v":{"$error":"#N/A"}},{"$f":"IF(Tableau2[[#This Row],[Nature Opération]]=\"Apport\",1,-1)","v":-1}]
[null,null,null,null,null,null,null,null,null,{"$f":"VLOOKUP(I272,'Liste Associés'!A:E,5,FALSE)","v":{"$error":"#N/A"}},{"$f":"IF(Tableau2[[#This Row],[Nature Opération]]=\"Apport\",1,-1)","v":-1}]
[null,null,null,null,null,null,null,null,null,{"$f":"VLOOKUP(I273,'Liste Associés'!A:E,5,FALSE)","v":{"$error":"#N/A"}},{"$f":"IF(Tableau2[[#This Row],[Nature Opération]]=\"Apport\",1,-1)","v":-1}]
[null,null,null,null,null,null,null,null,null,{"$f":"VLOOKUP(I274,'Liste Associés'!A:E,5,FALSE)","v":{"$error":"#N/A"}},{"$f":"IF(Tableau2[[#This Row],[Nature Opération]]=\"Apport\",1,-1)","v":-1}]
[null,null,null,null,null,null,null,null,null,{"$f":"VLOOKUP(I275,'Liste Associés'!A:E,5,FALSE)","v":{"$error":"#N/A"}},{"$f":"IF(Tableau2[[#This Row],[Nature Opération]]=\"Apport\",1,-1)","v":-1}]
[null,null,null,null,null,null,null,null,null,{"$f":"VLOOKUP(I276,'Liste Associés'!A:E,5,FALSE)","v":{"$error":"#N/A"}},{"$f":"IF(Tableau2[[#This Row],[Nature Opération]]=\"Apport\",1,-1)","v":-1}]
[null,null,null,null,null,null,null,null,null,{"$f":"VLOOKUP(I277,'Liste Associés'!A:E,5,FALSE)","v":{"$error":"#N/A"}},{"$f":"IF(Tableau2[[#This Row],[Nature Opération]]=\"Apport\",1,-1)","v":-1}]
[null,null,null,null,null,null,null,null,null,{"$f":"VLOOKUP(I278,'Liste Associés'!A:E,5,FALSE)","v":{"$error":"#N/A"}},{"$f":"IF(Tableau2[[#This Row],[Nature Opération]]=\"Apport\",1,-1)","v":-1}]
[null,null,null,null,null,null,null,null,null,{"$f":"VLOOKUP(I279,'Liste Associés'!A:E,5,FALSE)","v":{"$error":"#N/A"}},{"$f":"IF(Tableau2[[#This Row],[Nature Opération]]=\"Apport\",1,-1)","v":-1}]
[null,null,null,null,null,null,null,null,null,{"$f":"VLOOKUP(I280,'Liste Associés'!A:E,5,FALSE)","v":{"$error":"#N/A"}},{"$f":"IF(Tableau2[[#This Row],[Nature Opération]]=\"Apport\",1,-1)","v":-1}]
[null,null,null,null,null,null,null,null,null,{"$f":"VLOOKUP(I281,'Liste Associés'!A:E,5,FALSE)","v":{"$error":"#N/A"}},{"$f":"IF(Tableau2[[#This Row],[Nature Opération]]=\"Apport\",1,-1)","v":-1}]
[null,null,null,null,null,null,null,null,null,{"$f":"VLOOKUP(I282,'Liste Associés'!A:E,5,FALSE)","v":{"$error":"#N/A"}},{"$f":"IF(Tableau2[[#This Row],[Nature Opération]]=\"Apport\",1,-1)","v":-1}]
[null,null,null,null,null,null,null,null,null,{"$f":"VLOOKUP(I283,'Liste Associés'!A:E,5,FALSE)","v":{"$error":"#N/A"}},{"$f":"IF(Tableau2[[#This Row],[Nature Opération]]=\"Apport\",1,-1)","v":-1}]
[null,null,null,null,null,null,null,null,null,{"$f":"VLOOKUP(I284,'Liste Associés'!A:E,5,FALSE)","v":{"$error":"#N/A"}},{"$f":"IF(Tableau2[[#This Row],[Nature Opération]]=\"Apport\",1,-1)","v":-1}]
[null,null,null,null,null,null,null,null,null,{"$f":"VLOOKUP(I285,'Liste Associés'!A:E,5,FALSE)","v":{"$error":"#N/A"}},{"$f":"IF(Tableau2[[#This Row],[Nature Opération]]=\"Apport\",1,-1)","v":-1}]
[null,null,null,null,null,null,null,null,null,{"$f":"VLOOKUP(I286,'Liste Associés'!A:E,5,FALSE)","v":{"$error":"#N/A"}},{"$f":"IF(Tableau2[[#This Row],[Nature Opération]]=\"Apport\",1,-1)","v":-1}]
[null,null,null,null,null,null,null,null,null,{"$f":"VLOOKUP(I287,'Liste Associés'!A:E,5,FALSE)","v":{"$error":"#N/A"}},{"$f":"IF(Tableau2[[#This Row],[Nature Opération]]=\"Apport\",1,-1)","v":-1}]
[null,null,null,null,null,null,null,null,null,{"$f":"VLOOKUP(I288,'Liste Associés'!A:E,5,FALSE)","v":{"$error":"#N/A"}},{"$f":"IF(Tableau2[[#This Row],[Nature Opération]]=\"Apport\",1,-1)","v":-1}]
[null,null,null,null,null,null,null,null,null,{"$f":"VLOOKUP(I289,'Liste Associés'!A:E,5,FALSE)","v":{"$error":"#N/A"}},{"$f":"IF(Tableau2[[#This Row],[Nature Opération]]=\"Apport\",1,-1)","v":-1}]
[null,null,null,null,null,null,null,null,null,{"$f":"VLOOKUP(I290,'Liste Associés'!A:E,5,FALSE)","v":{"$error":"#N/A"}},{"$f":"IF(Tableau2[[#This Row],[Nature Opération]]=\"Apport\",1,-1)","v":-1}]
[null,null,null,null,null,null,null,null,null,{"$f":"VLOOKUP(I291,'Liste Associés'!A:E,5,FALSE)","v":{"$error":"#N/A"}},{"$f":"IF(Tableau2[[#This Row],[Nature Opération]]=\"Apport\",1,-1)","v":-1}]
[null,null,null,null,null,null,null,null,null,{"$f":"VLOOKUP(I292,'Liste Associés'!A:E,5,FALSE)","v":{"$error":"#N/A"}},{"$f":"IF(Tableau2[[#This Row],[Nature Opération]]=\"Apport\",1,-1)","v":-1}]
[null,null,null,null,null,null,null,null,null,{"$f":"VLOOKUP(I293,'Liste Associés'!A:E,5,FALSE)","v":{"$error":"#N/A"}},{"$f":"IF(Tableau2[[#This Row],[Nature Opération]]=\"Apport\",1,-1)","v":-1}]
[null,null,null,null,null,null,null,null,null,{"$f":"VLOOKUP(I294,'Liste Associés'!A:E,5,FALSE)","v":{"$error":"#N/A"}},{"$f":"IF(Tableau2[[#This Row],[Nature Opération]]=\"Apport\",1,-1)","v":-1}]
[null,null,null,null,null,null,null,null,null,{"$f":"VLOOKUP(I295,'Liste Associés'!A:E,5,FALSE)","v":{"$error":"#N/A"}},{"$f":"IF(Tableau2[[#This Row],[Nature Opération]]=\"Apport\",1,-1)","v":-1}]
[null,null,null,null,null,null,null,null,null,{"$f":"VLOOKUP(I296,'Liste Associés'!A:E,5,FALSE)","v":{"$error":"#N/A"}},{"$f":"IF(Tableau2[[#This Row],[Nature Opération]]=\"Apport\",1,-1)","v":-1}]
[null,null,null,null,null,null,null,null,null,{"$f":"VLOOKUP(I297,'Liste Associés'!A:E,5,FALSE)","v":{"$error":"#N/A"}},{"$f":"IF(Tableau2[[#This Row],[Nature Opération]]=\"Apport\",1,-1)","v":-1}]
[null,null,null,null,null,null,null,null,null,{"$f":"VLOOKUP(I298,'Liste Associés'!A:E,5,FALSE)","v":{"$error":"#N/A"}},{"$f":"IF(Tableau2[[#This Row],[Nature Opération]]=\"Apport\",1,-1)","v":-1}]
[null,null,null,null,null,null,null,null,null,{"$f":"VLOOKUP(I299,'Liste Associés'!A:E,5,FALSE)","v":{"$error":"#N/A"}},{"$f":"IF(Tableau2[[#This Row],[Nature Opération]]=\"Apport\",1,-1)","v":-1}]
[null,null,null,null,null,null,null,null,null,{"$f":"VLOOKUP(I300,'Liste Associés'!A:E,5,FALSE)","v":{"$error":"#N/A"}},{"$f":"IF(Tableau2[[#This Row],[Nature Opération]]=\"Apport\",1,-1)","v":-1}]
[null,null,null,null,null,null,null,null,null,{"$f":"VLOOKUP(I301,'Liste Associés'!A:E,5,FALSE)","v":{"$error":"#N/A"}},{"$f":"IF(Tableau2[[#This Row],[Nature Opération]]=\"Apport\",1,-1)","v":-1}]
[null,null,null,null,null,null,null,null,null,{"$f":"VLOOKUP(I302,'Liste Associés'!A:E,5,FALSE)","v":{"$error":"#N/A"}},{"$f":"IF(Tableau2[[#This Row],[Nature Opération]]=\"Apport\",1,-1)","v":-1}]
[null,null,null,null,null,null,null,null,null,{"$f":"VLOOKUP(I303,'Liste Associés'!A:E,5,FALSE)","v":{"$error":"#N/A"}},{"$f":"IF(Tableau2[[#This Row],[Nature Opération]]=\"Apport\",1,-1)","v":-1}]
[null,null,null,null,null,null,null,null,null,{"$f":"VLOOKUP(I304,'Liste Associés'!A:E,5,FALSE)","v":{"$error":"#N/A"}},{"$f":"IF(Tableau2[[#This Row],[Nature Opération]]=\"Apport\",1,-1)","v":-1}]
[null,null,null,null,null,null,null,null,null,{"$f":"VLOOKUP(I305,'Liste Associés'!A:E,5,FALSE)","v":{"$error":"#N/A"}},{"$f":"IF(Tableau2[[#This Row],[Nature Opération]]=\"Apport\",1,-1)","v":-1}]
[null,null,null,null,null,null,null,null,null,{"$f":"VLOOKUP(I306,'Liste Associés'!A:E,5,FALSE)","v":{"$error":"#N/A"}},{"$f":"IF(Tableau2[[#This Row],[Nature Opération]]=\"Apport\",1,-1)","v":-1}]
[null,null,null,null,null,null,null,null,null,{"$f":"VLOOKUP(I307,'Liste Associés'!A:E,5,FALSE)","v":{"$error":"#N/A"}},{"$f":"IF(Tableau2[[#This Row],[Nature Opération]]=\"Apport\",1,-1)","v":-1}]
[null,null,null,null,null,null,null,null,null,{"$f":"VLOOKUP(I308,'Liste Associés'!A:E,5,FALSE)","v":{"$error":"#N/A"}},{"$f":"IF(Tableau2[[#This Row],[Nature Opération]]=\"Apport\",1,-1)","v":-1}]
[null,null,null,null,null,null,null,null,null,{"$f":"VLOOKUP(I309,'Liste Associés'!A:E,5,FALSE)","v":{"$error":"#N/A"}},{"$f":"IF(Tableau2[[#This Row],[Nature Opération]]=\"Apport\",1,-1)","v":-1}]
[null,null,null,null,null,null,null,null,null,{"$f":"VLOOKUP(I310,'Liste Associés'!A:E,5,FALSE)","v":{"$error":"#N/A"}},{"$f":"IF(Tableau2[[#This Row],[Nature Opération]]=\"Apport\",1,-1)","v":-1}]
[null,null,null,null,null,null,null,null,null,{"$f":"VLOOKUP(I311,'Liste Associés'!A:E,5,FALSE)","v":{"$error":"#N/A"}},{"$f":"IF(Tableau2[[#This Row],[Nature Opération]]=\"Apport\",1,-1)","v":-1}]
[null,null,null,null,null,null,null,null,null,{"$f":"VLOOKUP(I312,'Liste Associés'!A:E,5,FALSE)","v":{"$error":"#N/A"}},{"$f":"IF(Tableau2[[#This Row],[Nature Opération]]=\"Apport\",1,-1)","v":-1}]
[null,null,null,null,null,null,null,null,null,{"$f":"VLOOKUP(I313,'Liste Associés'!A:E,5,FALSE)","v":{"$error":"#N/A"}},{"$f":"IF(Tableau2[[#This Row],[Nature Opération]]=\"Apport\",1,-1)","v":-1}]
[null,null,null,null,null,null,null,null,null,{"$f":"VLOOKUP(I314,'Liste Associés'!A:E,5,FALSE)","v":{"$error":"#N/A"}},{"$f":"IF(Tableau2[[#This Row],[Nature Opération]]=\"Apport\",1,-1)","v":-1}]
[null,null,null,null,null,null,null,null,null,{"$f":"VLOOKUP(I315,'Liste Associés'!A:E,5,FALSE)","v":{"$error":"#N/A"}},{"$f":"IF(Tableau2[[#This Row],[Nature Opération]]=\"Apport\",1,-1)","v":-1}]
[null,null,null,null,null,null,null,null,null,{"$f":"VLOOKUP(I316,'Liste Associés'!A:E,5,FALSE)","v":{"$error":"#N/A"}},{"$f":"IF(Tableau2[[#This Row],[Nature Opération]]=\"Apport\",1,-1)","v":-1}]
[null,null,null,null,null,null,null,null,null,{"$f":"VLOOKUP(I317,'Liste Associés'!A:E,5,FALSE)","v":{"$error":"#N/A"}},{"$f":"IF(Tableau2[[#This Row],[Nature Opération]]=\"Apport\",1,-1)","v":-1}]
[null,null,null,null,null,null,null,null,null,{"$f":"VLOOKUP(I318,'Liste Associés'!A:E,5,FALSE)","v":{"$error":"#N/A"}},{"$f":"IF(Tableau2[[#This Row],[Nature Opération]]=\"Apport\",1,-1)","v":-1}]
[null,null,null,null,null,null,null,null,null,{"$f":"VLOOKUP(I319,'Liste Associés'!A:E,5,FALSE)","v":{"$error":"#N/A"}},{"$f":"IF(Tableau2[[#This Row],[Nature Opération]]=\"Apport\",1,-1)","v":-1}]
[null,null,null,null,null,null,null,null,null,{"$f":"VLOOKUP(I320,'Liste Associés'!A:E,5,FALSE)","v":{"$error":"#N/A"}},{"$f":"IF(Tableau2[[#This Row],[Nature Opération]]=\"Apport\",1,-1)","v":-1}]
[null,null,null,null,null,null,null,null,null,{"$f":"VLOOKUP(I321,'Liste Associés'!A:E,5,FALSE)","v":{"$error":"#N/A"}},{"$f":"IF(Tableau2[[#This Row],[Nature Opération]]=\"Apport\",1,-1)","v":-1}]
[null,null,null,null,null,null,null,null,null,{"$f":"VLOOKUP(I322,'Liste Associés'!A:E,5,FALSE)","v":{"$error":"#N/A"}},{"$f":"IF(Tableau2[[#This Row],[Nature Opération]]=\"Apport\",1,-1)","v":-1}]
[null,null,null,null,null,null,null,null,null,{"$f":"VLOOKUP(I323,'Liste Associés'!A:E,5,FALSE)","v":{"$error":"#N/A"}},{"$f":"IF(Tableau2[[#This Row],[Nature Opération]]=\"Apport\",1,-1)","v":-1}]
[null,null,null,null,null,null,null,null,null,{"$f":"VLOOKUP(I324,'Liste Associés'!A:E,5,FALSE)","v":{"$error":"#N/A"}},{"$f":"IF(Tableau2[[#This Row],[Nature Opération]]=\"Apport\",1,-1)","v":-1}]
[null,null,null,null,null,null,null,null,null,{"$f":"VLOOKUP(I325,'Liste Associés'!A:E,5,FALSE)","v":{"$error":"#N/A"}},{"$f":"IF(Tableau2[[#This Row],[Nature Opération]]=\"Apport\",1,-1)","v":-1}]
[null,null,null,null,null,null,null,null,null,{"$f":"VLOOKUP(I326,'Liste Associés'!A:E,5,FALSE)","v":{"$error":"#N/A"}},{"$f":"IF(Tableau2[[#This Row],[Nature Opération]]=\"Apport\",1,-1)","v":-1}]
[null,null,null,null,null,null,null,null,null,{"$f":"VLOOKUP(I327,'Liste Associés'!A:E,5,FALSE)","v":{"$error":"#N/A"}},{"$f":"IF(Tableau2[[#This Row],[Nature Opération]]=\"Apport\",1,-1)","v":-1}]
[null,null,null,null,null,null,null,null,null,{"$f":"VLOOKUP(I328,'Liste Associés'!A:E,5,FALSE)","v":{"$error":"#N/A"}},{"$f":"IF(Tableau2[[#This Row],[Nature Opération]]=\"Apport\",1,-1)","v":-1}]
[null,null,null,null,null,null,null,null,null,{"$f":"VLOOKUP(I329,'Liste Associés'!A:E,5,FALSE)","v":{"$error":"#N/A"}},{"$f":"IF(Tableau2[[#This Row],[Nature Opération]]=\"Apport\",1,-1)","v":-1}]
[null,null,null,null,null,null,null,null,null,{"$f":"VLOOKUP(I330,'Liste Associés'!A:E,5,FALSE)","v":{"$error":"#N/A"}},{"$f":"IF(Tableau2[[#This Row],[Nature Opération]]=\"Apport\",1,-1)","v":-1}]
[null,null,null,null,null,null,null,null,null,{"$f":"VLOOKUP(I331,'Liste Associés'!A:E,5,FALSE)","v":{"$error":"#N/A"}},{"$f":"IF(Tableau2[[#This Row],[Nature Opération]]=\"Apport\",1,-1)","v":-1}]
[null,null,null,null,null,null,null,null,null,{"$f":"VLOOKUP(I332,'Liste Associés'!A:E,5,FALSE)","v":{"$error":"#N/A"}},{"$f":"IF(Tableau2[[#This Row],[Nature Opération]]=\"Apport\",1,-1)","v":-1}]
[null,null,null,null,null,null,null,null,null,{"$f":"VLOOKUP(I333,'Liste Associés'!A:E,5,FALSE)","v":{"$error":"#N/A"}},{"$f":"IF(Tableau2[[#This Row],[Nature Opération]]=\"Apport\",1,-1)","v":-1}]
[null,null,null,null,null,null,null,null,null,{"$f":"VLOOKUP(I334,'Liste Associés'!A:E,5,FALSE)","v":{"$error":"#N/A"}},{"$f":"IF(Tableau2[[#This Row],[Nature Opération]]=\"Apport\",1,-1)","v":-1}]
[null,null,null,null,null,null,null,null,null,{"$f":"VLOOKUP(I335,'Liste Associés'!A:E,5,FALSE)","v":{"$error":"#N/A"}},{"$f":"IF(Tableau2[[#This Row],[Nature Opération]]=\"Apport\",1,-1)","v":-1}]
[null,null,null,null,null,null,null,null,null,{"$f":"VLOOKUP(I336,'Liste Associés'!A:E,5,FALSE)","v":{"$error":"#N/A"}},{"$f":"IF(Tableau2[[#This Row],[Nature Opération]]=\"Apport\",1,-1)","v":-1}]
[null,null,null,null,null,null,null,null,null,{"$f":"VLOOKUP(I337,'Liste Associés'!A:E,5,FALSE)","v":{"$error":"#N/A"}},{"$f":"IF(Tableau2[[#This Row],[Nature Opération]]=\"Apport\",1,-1)","v":-1}]
[null,null,null,null,null,null,null,null,null,{"$f":"VLOOKUP(I338,'Liste Associés'!A:E,5,FALSE)","v":{"$error":"#N/A"}},{"$f":"IF(Tableau2[[#This Row],[Nature Opération]]=\"Apport\",1,-1)","v":-1}]
[null,null,null,null,null,null,null,null,null,{"$f":"VLOOKUP(I339,'Liste Associés'!A:E,5,FALSE)","v":{"$error":"#N/A"}},{"$f":"IF(Tableau2[[#This Row],[Nature Opération]]=\"Apport\",1,-1)","v":-1}]
[null,null,null,null,null,null,null,null,null,{"$f":"VLOOKUP(I340,'Liste Associés'!A:E,5,FALSE)","v":{"$error":"#N/A"}},{"$f":"IF(Tableau2[[#This Row],[Nature Opération]]=\"Apport\",1,-1)","v":-1}]
[null,null,null,null,null,null,null,null,null,{"$f":"VLOOKUP(I341,'Liste Associés'!A:E,5,FALSE)","v":{"$error":"#N/A"}},{"$f":"IF(Tableau2[[#This Row],[Nature Opération]]=\"Apport\",1,-1)","v":-1}]
[null,null,null,null,null,null,null,null,null,{"$f":"VLOOKUP(I342,'Liste Associés'!A:E,5,FALSE)","v":{"$error":"#N/A"}},{"$f":"IF(Tableau2[[#This Row],[Nature Opération]]=\"Apport\",1,-1)","v":-1}]
[null,null,null,null,null,null,null,null,null,{"$f":"VLOOKUP(I343,'Liste Associés'!A:E,5,FALSE)","v":{"$error":"#N/A"}},{"$f":"IF(Tableau2[[#This Row],[Nature Opération]]=\"Apport\",1,-1)","v":-1}]
[null,null,null,null,null,null,null,null,null,{"$f":"VLOOKUP(I344,'Liste Associés'!A:E,5,FALSE)","v":{"$error":"#N/A"}},{"$f":"IF(Tableau2[[#This Row],[Nature Opération]]=\"Apport\",1,-1)","v":-1}]
[null,null,null,null,null,null,null,null,null,{"$f":"VLOOKUP(I345,'Liste Associés'!A:E,5,FALSE)","v":{"$error":"#N/A"}},{"$f":"IF(Tableau2[[#This Row],[Nature Opération]]=\"Apport\",1,-1)","v":-1}]
[null,null,null,null,null,null,null,null,null,{"$f":"VLOOKUP(I346,'Liste Associés'!A:E,5,FALSE)","v":{"$error":"#N/A"}},{"$f":"IF(Tableau2[[#This Row],[Nature Opération]]=\"Apport\",1,-1)","v":-1}]
[null,null,null,null,null,null,null,null,null,{"$f":"VLOOKUP(I347,'Liste Associés'!A:E,5,FALSE)","v":{"$error":"#N/A"}},{"$f":"IF(Tableau2[[#This Row],[Nature Opération]]=\"Apport\",1,-1)","v":-1}]
[null,null,null,null,null,null,null,null,null,{"$f":"VLOOKUP(I348,'Liste Associés'!A:E,5,FALSE)","v":{"$error":"#N/A"}},{"$f":"IF(Tableau2[[#This Row],[Nature Opération]]=\"Apport\",1,-1)","v":-1}]
[null,null,null,null,null,null,null,null,null,{"$f":"VLOOKUP(I349,'Liste Associés'!A:E,5,FALSE)","v":{"$error":"#N/A"}},{"$f":"IF(Tableau2[[#This Row],[Nature Opération]]=\"Apport\",1,-1)","v":-1}]
[null,null,null,null,null,null,null,null,null,{"$f":"VLOOKUP(I350,'Liste Associés'!A:E,5,FALSE)","v":{"$error":"#N/A"}},{"$f":"IF(Tableau2[[#This Row],[Nature Opération]]=\"Apport\",1,-1)","v":-1}]
[null,null,null,null,null,null,null,null,null,{"$f":"VLOOKUP(I351,'Liste Associés'!A:E,5,FALSE)","v":{"$error":"#N/A"}},{"$f":"IF(Tableau2[[#This Row],[Nature Opération]]=\"Apport\",1,-1)","v":-1}]
[null,null,null,null,null,null,null,null,null,{"$f":"VLOOKUP(I352,'Liste Associés'!A:E,5,FALSE)","v":{"$error":"#N/A"}},{"$f":"IF(Tableau2[[#This Row],[Nature Opération]]=\"Apport\",1,-1)","v":-1}]
[null,null,null,null,null,null,null,null,null,{"$f":"VLOOKUP(I353,'Liste Associés'!A:E,5,FALSE)","v":{"$error":"#N/A"}},{"$f":"IF(Tableau2[[#This Row],[Nature Opération]]=\"Apport\",1,-1)","v":-1}]
[null,null,null,null,null,null,null,null,null,{"$f":"VLOOKUP(I354,'Liste Associés'!A:E,5,FALSE)","v":{"$error":"#N/A"}},{"$f":"IF(Tableau2[[#This Row],[Nature Opération]]=\"Apport\",1,-1)","v":-1}]
[null,null,null,null,null,null,null,null,null,{"$f":"VLOOKUP(I355,'Liste Associés'!A:E,5,FALSE)","v":{"$error":"#N/A"}},{"$f":"IF(Tableau2[[#This Row],[Nature Opération]]=\"Apport\",1,-1)","v":-1}]
[null,null,null,null,null,null,null,null,null,{"$f":"VLOOKUP(I356,'Liste Associés'!A:E,5,FALSE)","v":{"$error":"#N/A"}},{"$f":"IF(Tableau2[[#This Row],[Nature Opération]]=\"Apport\",1,-1)","v":-1}]
[null,null,null,null,null,null,null,null,null,{"$f":"VLOOKUP(I357,'Liste Associés'!A:E,5,FALSE)","v":{"$error":"#N/A"}},{"$f":"IF(Tableau2[[#This Row],[Nature Opération]]=\"Apport\",1,-1)","v":-1}]
[null,null,null,null,null,null,null,null,null,{"$f":"VLOOKUP(I358,'Liste Associés'!A:E,5,FALSE)","v":{"$error":"#N/A"}},{"$f":"IF(Tableau2[[#This Row],[Nature Opération]]=\"Apport\",1,-1)","v":-1}]
[null,null,null,null,null,null,null,null,null,{"$f":"VLOOKUP(I359,'Liste Associés'!A:E,5,FALSE)","v":{"$error":"#N/A"}},{"$f":"IF(Tableau2[[#This Row],[Nature Opération]]=\"Apport\",1,-1)","v":-1}]

{"sheet":"TCD","index":2,"n_rows":9,"n_cols":4,"rows_kept":9,"cut":false,"hidden":false,"merged":[]}
[]
[]
["Étiquettes de lignes","Somme de Sens",null,"Je voudrais que le TCD calcul le nombre de parts par associés (en prenant en compte les cessation de parts)"]
["JEAN François",2]
["JEAN Jacques",1]
["JEAN Marie",2]
["JEAN Paul",1]
["JEAN Pierre",2]
["Total général",8]

{"sheet":"Feuil3","index":3,"n_rows":0,"n_cols":0,"rows_kept":0,"cut":false,"hidden":false,"merged":[]}

{"sheet":"Listes","index":4,"n_rows":5,"n_cols":1,"rows_kept":5,"cut":false,"hidden":false,"merged":[]}
["Nature Opération"]
["Cession"]
["Apport"]
["Donation"]
["Autres ?"]